{"text_format":"1","workbook":"xlsx","n_sheets":11,"sheets":["Contents","Business & other details","3.1 Revenue","3.2 Operating expenditure","3.2.3 Provisions","3.3 Assets (RAB)","3.4 Operational data","3.5 Physical assets","3.6 Quality of service","3.7 Operating environment","Unlocked worksheet"],"not_rendered":{"charts":0,"images":1,"macros":1,"external_links":0,"defined_names":380,"comments":0,"pivot_tables":0},"unopened":[],"bounds":{"document_bytes":16777216,"sheet_cells":100000,"rows_first":2000,"rows_last":500,"rows_between":2000,"halvings":0,"cell_chars":16384,"cell_head_chars":4096},"cells_cut":0,"cells_raw":0,"read":"whole","date_system":"1900"}

{"sheet":"Contents","index":0,"n_rows":12,"n_cols":2,"rows_kept":12,"cut":false,"hidden":false,"merged":[]}
[null,"REGULATORY REPORTING STATEMENT"]
[null,{"$f":"dms_TradingName","v":"TasNetworks (D)"}]
[null,{"$f":"CONCATENATE(\"Benchmarking RIN response \",CRY)","v":"Benchmarking RIN response 2014-15"}]
[]
[null,"CONTENTS"]
[]
[]
[]
[]
[]
[]
[null,"3.             ECONOMIC BENCHMARKING"]

{"sheet":"Business & other details","index":1,"n_rows":82,"n_cols":20,"rows_kept":82,"cut":false,"hidden":false,"merged":[[23,5,23,8],[0,11,0,19],[7,2,7,9],[11,2,11,9],[13,3,13,5],[14,3,14,5],[17,3,17,4],[17,5,17,8],[18,5,18,8],[19,3,19,4],[19,5,19,8],[22,3,22,4],[22,5,22,8],[24,3,24,4],[24,5,24,8],[28,3,28,4],[28,6,28,7],[29,3,29,4],[29,6,29,7],[51,3,51,4],[58,3,58,9],[59,0,65,0],[30,3,30,4],[30,6,30,7],[32,0,41,0],[32,2,32,9],[38,3,38,4],[43,0,46,0]]}
["HIDE THIS COLUMN",null,{"$f":"(LOOKUP(dms_Model,dms_Model_List,dms_Worksheet_List))","v":"REGULATORY REPORTING STATEMENT"},null,null,null,null,null,null,null,null,"Data in these columns used for data validation and database purposes."]
[null,null,{"$f":"dms_TradingName","v":"TasNetworks (D)"},null,null,null,null,null,null,null,null,"Date last modified:"]
[null,null,{"$f":"CONCATENATE(\"Benchmarking RIN response \",CRY)","v":"Benchmarking RIN response 2014-15"},null,null,null,null,null,null,null,null,"14 April 2015","merged cell C46/47"]
[null,null,"BUSINESS & OTHER DETAILS",null,null,null,null,null,null,null,null,"17 April 2015","adjusted dms_RYE to automate based on dms_Model (NB: EB & CA refer to CRCP_y5)"]
[null,null,"USES NAMED RANGES FLAG","yes","dms_Defined_Names_Used",null,null,null,null,null,null,"14 May 2015","adapted this cover for use in CA & EB RINs"]
[]
[null,null,"Instructions"]
[null,null,"Complete the following business details regulatory template before entering data or values in any other regulatory template. This regulatory template is linked to other cells within the spreadsheet and automatically generates column headings."]
[]
[null,null,"SUBMISSION PARTICULARS INPUT SHEETS"]
[]
[null,null,"Entity details"]
[]
[null,null,"Trading name","TasNetworks (D)"]
[null,null,"ACN / ABN",{"$f":"INDEX(dms_ABN_List,MATCH(dms_TradingName,dms_TradingName_List))","v":24167357299}]
[]
[null,null,null,null,null,null,null,null,null,null,null,"dms_Model_List ","dms_Worksheet_List ",null,"dms_RYE_List1","dms_RYE_List2"]
[null,null,"Business address","Address 1",null,"1 - 7 Maria Street",null,null,null,null,null,"CA","REGULATORY REPORTING STATEMENT",null,"dms_RYE",{"$f":"CONCATENATE(LEFT(CRY, 2) &IF(CRY>\"2009-10\",,\"\") &RIGHT(CRY,2))","v":"2015"}]
[null,null,null,null,"Address 2",null,null,null,null,null,null,"CAM/Service change Backcast","REGULATORY REPORTING STATEMENT",null,"dms_RYE",{"$f":"CONCATENATE(LEFT(CRCP_y5, 2) &IF(CRCP_y5>\"2009-10\",,\"\") &RIGHT(CRCP_y5,2))","v":"2016"}]
[null,null,null,"Suburb",null,"Lenah Valley",null,null,null,null,null,"CPI","CPI",null,"dms_RYE",{"$f":"CONCATENATE(LEFT(CRCP_y5, 2) &IF(CRCP_y5>\"2009-10\",,\"\") &RIGHT(CRCP_y5,2))","v":"2016"}]
[null,null,null,null,"State",{"$f":"INDEX(dms_State_List,MATCH(dms_TradingName,dms_TradingName_List))","v":"Tas"},"p/code",7008,null,null,null,"EB","REGULATORY REPORTING STATEMENT",null,"dms_RYE",{"$f":"CONCATENATE(LEFT(CRY, 2) &IF(CRY>\"2009-10\",,\"\") &RIGHT(CRY,2))","v":"2015"}]
[null,null,null,null,null,null,null,null,null,null,null,"PTRM","POST TAX REVENUE MODEL",null,"FRCP",{"$f":"CONCATENATE(LEFT(FRCP_y5, 2) &IF(FRCP_y1>\"2009-10\",,\"\") &RIGHT(FRCP_y5,2))","v":"2021"}]
[null,null,"Postal address","Address 1",null,"PO Box 606",null,null,null,null,null,"Reset","REGULATORY REPORTING STATEMENT",null,"FRCP",{"$f":"CONCATENATE(LEFT(CRCP_y5, 2) &IF(CRCP_y5>\"2009-10\",,\"\") &RIGHT(CRCP_y5,2))","v":"2016"}]
[null,null,null,null,"Address 2",null,null,null,null,null,null,"RFM","ROLL FORWARD MODEL",null,"CRCP",{"$f":"CONCATENATE(LEFT(CRCP_y5, 2) &IF(CRCP_y1>\"2009-10\",,\"\") &RIGHT(CRCP_y5,2))","v":"2016"}]
[null,null,null,"Suburb",null,"Moonah",null,null,null,null,null,"WACC","WEIGHTED AVERAGE COST OF CAPITAL",null,"dms_RYE",{"$f":"CONCATENATE(LEFT(CRCP_y5, 2) &IF(CRCP_y5>\"2009-10\",,\"\") &RIGHT(CRCP_y5,2))","v":"2016"}]
[null,null,null,null,"State","Tas","p/code",7009]
[]
[null,null,null,null,null,null,null,null,null,null,null,"dms_TradingName_List","dms_ABN_List","dms_State_List","dms_Sector_List","dms_Segment_List","dms_FormControl","dms_CRCPlength_List","dms_FRCPlength_List","dms_JurisdictionList"]
[null,null,"Contact name/s","Kirstan Wilding",null,null,"Amy Parker",null,null,null,null,"ActewAGL Distribution",76670568688,"ACT","Electricity","Distribution","Revenue cap",5,6,"ACT"]
[null,null,"Contact phone/s","(03) 6271 6696",null,null,"(03) 6271 6046",null,null,null,null,"ActewAGL Distribution (Tx Assets)",76670568688,"ACT","Electricity","Distribution","Revenue cap",5,5,"ACT"]
[null,null,"Contact email address/s","kirstan.wilding@tasnetworks.com.au",null,null,"amy-marie.parker@tasnetworks.com.au",null,null,null,null,"AGN",78551685,"SA","Gas","Distribution","Revenue cap",5,5,"SA"]
[null,null,null,null,null,null,null,null,null,null,null,"Ausgrid",67505337385,"NSW","Electricity","Distribution","Revenue cap",5,5,"NSW"]
["KEEP VISIBLE FOR\n RESET, PTRM & RFMS",null,"Regulatory control period details",null,null,null,null,null,null,null,null,"Ausgrid (Tx Assets)",67505337385,"NSW","Electricity","Distribution","Revenue cap",5,5,"NSW"]
[null,null,null,null,null,null,null,null,null,null,null,"AusNet (D)",91064651118,"Vic","Electricity","Distribution","Revenue cap",5,5,"Vic"]
[null,null,"Forthcoming regulatory control period",{"$f":"CONCATENATE(IF(dms_RPT=\"Calendar\",CRCP_y5+1,(LEFT(CRCP_y5,4)+1&\"-\"&IF(MID(CRCP_y5,6,2)<\"09\",\"0\"&RIGHT(CRCP_y5,1)+1,RIGHT(CRCP_y5,2)+1))))","v":"2016-17"},{"$f":"CONCATENATE(IF(dms_RPT=\"Calendar\",FRCP_y1+1,(LEFT(FRCP_y1,4)+1&\"-\"&IF(MID(FRCP_y1,6,2)<\"09\",\"0\"&RIGHT(FRCP_y1,1)+1,RIGHT(FRCP_y1,2)+1))))","v":"2017-18"},{"$f":"CONCATENATE(IF(dms_RPT=\"Calendar\",FRCP_y2+1,(LEFT(FRCP_y2,4)+1&\"-\"&IF(MID(FRCP_y2,6,2)<\"09\",\"0\"&RIGHT(FRCP_y2,1)+1,RIGHT(FRCP_y2,2)+1))))","v":"2018-19"},{"$f":"CONCATENATE(IF(dms_RPT=\"Calendar\",FRCP_y3+1,(LEFT(FRCP_y3,4)+1&\"-\"&IF(MID(FRCP_y3,6,2)<\"09\",\"0\"&RIGHT(FRCP_y3,1)+1,RIGHT(FRCP_y3,2)+1))))","v":"2019-20"},{"$f":"CONCATENATE(IF(dms_RPT=\"Calendar\",FRCP_y4+1,(LEFT(FRCP_y4,4)+1&\"-\"&IF(MID(FRCP_y4,6,2)<\"09\",\"0\"&RIGHT(FRCP_y4,1)+1,RIGHT(FRCP_y4,2)+1))))","v":"2020-21"},null,null,null,"AusNet (T)",78079798173,"Vic","Electricity","Transmission","Revenue cap",5,5,"Vic"]
[null,null,null,null,null,null,null,null,null,null,null,"Australian Distribution Co.",11222333444,"-","Electricity","Distribution","Revenue cap",5,5,"-"]
[null,null,null,null,null,null,null,null,null,null,null,"Australian Transmission Co.",11222333444,"-","Electricity","Transmission","Revenue cap",5,5,"-"]
[null,null,"Current regulatory control period","2011-12",{"$f":"CONCATENATE(IF(dms_RPT=\"Calendar\",CRCP_y1+1,(LEFT(CRCP_y1,4)+1&\"-\"&IF(MID(CRCP_y1,6,2)<\"09\",\"0\"&RIGHT(CRCP_y1,1)+1,RIGHT(CRCP_y1,2)+1))))","v":"2012-13"},{"$f":"CONCATENATE(IF(dms_RPT=\"Calendar\",CRCP_y2+1,(LEFT(CRCP_y2,4)+1&\"-\"&IF(MID(CRCP_y2,6,2)<\"09\",\"0\"&RIGHT(CRCP_y2,1)+1,RIGHT(CRCP_y2,2)+1))))","v":"2013-14"},{"$f":"CONCATENATE(IF(dms_RPT=\"Calendar\",CRCP_y3+1,(LEFT(CRCP_y3,4)+1&\"-\"&IF(MID(CRCP_y3,6,2)<\"09\",\"0\"&RIGHT(CRCP_y3,1)+1,RIGHT(CRCP_y3,2)+1))))","v":"2014-15"},{"$f":"CONCATENATE(IF(dms_RPT=\"Calendar\",CRCP_y4+1,(LEFT(CRCP_y4,4)+1&\"-\"&IF(MID(CRCP_y4,6,2)<\"09\",\"0\"&RIGHT(CRCP_y4,1)+1,RIGHT(CRCP_y4,2)+1))))","v":"2015-16"},null,null,null,"CitiPower",76064651056,"Vic","Electricity","Distribution","Revenue cap",5,5,"Vic"]
[null,null,null,null,null,null,null,null,null,null,null,"Directlink",16779340889,"NSW","Electricity","Transmission","Revenue cap",10,5,"Qld"]
[null,null,null,null,null,null,null,null,null,null,null,"ElectraNet",41094482416,"SA","Electricity","Transmission","Revenue cap",5,5,"SA"]
[null,null,"Previous regulatory control period",{"$f":"CONCATENATE(IF(dms_RPT=\"Calendar\",PRCP_y2-1,(LEFT(PRCP_y2,4)-1&\"-\"&IF(MID(PRCP_y2,3,1)=\"0\",\"0\"&RIGHT(PRCP_y2,2)-1,RIGHT(PRCP_y2,2)-1))))","v":"2006-07"},{"$f":"CONCATENATE(IF(dms_RPT=\"Calendar\",PRCP_y3-1,(LEFT(PRCP_y3,4)-1&\"-\"&IF(MID(PRCP_y3,3,1)=\"0\",\"0\"&RIGHT(PRCP_y3,2)-1,RIGHT(PRCP_y3,2)-1))))","v":"2007-08"},{"$f":"CONCATENATE(IF(dms_RPT=\"Calendar\",PRCP_y4-1,(LEFT(PRCP_y4,4)-1&\"-\"&IF(MID(PRCP_y4,3,1)=\"0\",\"0\"&RIGHT(PRCP_y4,2)-1,RIGHT(PRCP_y4,2)-1))))","v":"2008-09"},{"$f":"CONCATENATE(IF(dms_RPT=\"Calendar\",PRCP_y5-1,(LEFT(PRCP_y5,4)-1&\"-\"&IF(MID(PRCP_y5,3,1)=\"0\",\"0\"&RIGHT(PRCP_y5,2)-1,RIGHT(PRCP_y5,2)-1))))","v":"2009-10"},{"$f":"CONCATENATE(IF(dms_RPT=\"Calendar\",CRCP_y1-1,(LEFT(CRCP_y1,4)-1&\"-\"&IF(MID(CRCP_y1,3,1)=\"0\",\"0\"&RIGHT(CRCP_y1,2)-1,RIGHT(CRCP_y1,2)-1))))","v":"2010-11"},null,null,null,"Endeavour Energy",59253130878,"NSW","Electricity","Distribution","Revenue cap",5,5,"NSW"]
[null,null,null,null,null,null,null,null,null,null,null,"Energex",40078849055,"Qld","Electricity","Distribution","Revenue cap",5,5,"Qld"]
[null,null,null,null,null,null,null,null,null,null,null,"Ergon Energy",50087646062,"Qld","Electricity","Distribution","Revenue cap",5,5,"Qld"]
["KEEP VISIBLE FOR\nCA & EB ONLY",null,null,null,null,null,null,null,null,null,null,"Essential Energy",37428185226,"NSW","Electricity","Distribution","Revenue cap",5,5,"NSW"]
[null,null,"Current regulatory year","2014-15",null,null,null,null,null,null,null,"Jemena Electricity",82064651083,"Vic","Electricity","Distribution","Revenue cap",5,5,"Vic"]
[null,null,null,null,null,null,null,null,null,null,null,"Murraylink",79181207909,"NSW","Electricity","Transmission","Revenue cap",5,5,"SA"]
[null,null,null,null,null,null,null,null,null,null,null,"Powercor Australia",89064651109,"Vic","Electricity","Distribution","Revenue cap",5,5,"Vic"]
[null,null,null,null,null,null,null,null,null,null,null,"Powerlink",82078849233,"Qld","Electricity","Transmission","Revenue cap",5,5,"Qld"]
[null,null,null,null,null,null,null,null,null,null,null,"Qld,SA &ACT Gas Reset",22222222222,"-","Gas","Distribution","?",5,5,"-"]
[null,null,"Sector",{"$f":"INDEX(dms_Sector_List,MATCH(dms_TradingName,dms_TradingName_List))","v":"Electricity"},null,null,null,null,null,null,null,"SA Power Networks",13332330749,"SA","Electricity","Distribution","Revenue cap",5,5,"SA"]
[null,null,"Segment",{"$f":"INDEX(dms_Segment_List,MATCH(dms_TradingName,dms_TradingName_List))","v":"Distribution"},null,null,null,null,null,null,null,"TasNetworks (D)",24167357299,"Tas","Electricity","Distribution","Revenue cap",5,5,"Tas"]
[null,null,"Source","Reporting",null,null,null,null,null,null,null,"TasNetworks (T)",24167357299,"Tas","Electricity","Transmission","Revenue cap",5,5,"Tas"]
[null,null,"Regulatory Year Ending",{"$f":"(LOOKUP(dms_Model,dms_Model_List,dms_RYE_List2))","v":"2015"},null,null,null,null,null,null,null,"TransGrid",19622755774,"NSW","Electricity","Transmission","Revenue cap",5,5,"NSW"]
[null,null,"Reporting Period Type",{"$f":"IF(LEN(CRCP_y1)>4,\"Financial\",\"Calendar\")","v":"Financial"},null,null,null,null,null,null,null,"United Energy",70064651029,"Vic","Electricity","Distribution","Revenue cap",5,5,"Vic"]
[null,null,"Model or RIN Type","EB",null,null,null,null,null,null,null,"Victorian DNSP Backcasting",33333333666,"Vic","Electricity","Distribution","?",5,5,"Vic"]
[null,null,"Security Classification","Public",null,null,null,null,null,null,null,"Victorian DNSP Reset ",33333333333,"Vic","Electricity","Distribution","?",5,5,"Vic"]
[null,null,"Data quality (actual, estimate, public, consolidated)","Consolidated"]
[null,null,"EBSS - First application of scheme in forthcoming period?","No"]
[null,null,"Amended RIN submission - amendment reason","20171129 - amended 3.2.3 provisions (see d18/27706)  |  \n20160617 & 20160707 - updates to 3.5.1.3, 3.5.1.4 and 3.7.3 (see d17 26128 and d17 26129) "]
["HIDE THESE ROWS",null,"Template - version no.",5]
[null,null,"Dollar $ real  (the last month before the FRCP_y1)",{"$f":"CONCATENATE(IF(dms_RPT=\"Financial\",\"June \",\"December \"),(dms_RYE))","v":"June 2015"},null,null,null,null,null,null,null,"dms_SourceList","dms_FormControl"]
[null,null,"Form of control",{"$f":"INDEX(dms_FormControl_List,MATCH(dms_TradingName,dms_TradingName_List))","v":"Revenue cap"},null,null,null,null,null,null,null,"After appeal","Revenue cap"]
[null,null,"Length of current reg control period",{"$f":"INDEX(dms_CRCPlength_List,MATCH(dms_TradingName,dms_TradingName_List))","v":5},null,null,null,null,null,null,null,"Draft decision","Revenue yield"]
[null,null,"Length of forthcoming reg control period",{"$f":"INDEX(dms_FRCPlength_List,MATCH(dms_TradingName,dms_TradingName_List))","v":5},null,null,null,null,null,null,null,"Final decision","Weighted average price cap"]
[null,null,"RIN response - version no.",3,null,null,null,null,null,null,null,"Pass through decision"]
[null,null,"Jurisdiction",{"$f":"INDEX(dms_JurisdictionList,MATCH(dms_TradingName,dms_TradingName_List))","v":"Tas"},null,null,null,null,null,null,null,"PTRM annual update"]
[null,null,"EB/CA Unit of Measure for Monetary Values","$0's","dms_dollar_nom_UOM","If the cover sheet is attached to an EB files make sure this field is set",null,null,null,null,null,"PTRM interim update 1"]
[null,null,null,null,null,null,null,null,null,null,null,"PTRM interim update 2"]
[null,null,null,null,null,null,null,null,null,null,null,"PTRM interim update 3"]
[null,null,"Submission Date","2017-11-29","dms_SubmissionDate",null,null,null,null,null,null,"PTRM interim update 4"]
[null,null,"CRCP Final Year Result",{"$f":"CRY","v":"2014-15"},"dms_CRCP_FinalYear_Result",null,null,null,null,null,null,"Regulatory proposal"]
[null,null,null,null,null,null,null,null,null,null,null,"Reporting"]
[null,null,null,null,null,null,null,null,null,null,null,"Revised regulatory proposal"]
[null,null,null,null,null,null,null,null,null,null,null,"RFM annual update"]
[null,null,null,null,null,null,null,null,null,null,null,"WACC annual update"]
[]
[]
[]
[null,null,null,null,null,null,null,null,null,null,null,"Notes"]
[null,null,null,null,null,null,null,null,null,null,null,"RFM - Base year is usually CRCP_y1","EG. Victorian 2016-20 - base year = 2011"]
[null,null,null,null,null,null,null,null,null,null,null,"RFM - Form of Control Field is not relevant"]
[null,null,null,null,null,null,null,null,null,null,null,"PTRM - capture base year input by NSP","='[Published version - PTRM - TNSP - version 3 - January 2015 - Appendix A.xlsm]PTRM input'!Q7"]

{"sheet":"3.1 Revenue","index":2,"n_rows":43,"n_cols":6,"rows_kept":43,"cut":false,"hidden":false,"merged":[[8,4,8,5]]}
[null,null,"REGULATORY REPORTING STATEMENT"]
[null,null,{"$f":"dms_TradingName","v":"TasNetworks (D)"}]
[null,null,{"$f":"CONCATENATE(\"Benchmarking RIN response \",CRY)","v":"Benchmarking RIN response 2014-15"}]
[null,null,"3.1 REVENUE"]
[]
[]
[]
[null,null,null,null,"Standard control services","Alternative control services"]
[null,null,null,null,"Actual\n($0's)"]
[null,null,null,null,{"$f":"CRY","v":"2014-15"},{"$f":"CRY","v":"2014-15"}]
[]
[null,null,"TABLE 3.1.1 - REVENUE GROUPING BY CHARGEABLE QUANTITY"]
["ED_REV311_00001","DREV0101","Revenue from Fixed Customer Charges ",null,47613864.758785807]
["ED_REV311_00002","DREV0102","Revenue from Energy Delivery charges where time of use is not a determinant",null,254952124.39514214]
["ED_REV311_00003","DREV0103","Revenue from On–Peak Energy Delivery charges ",null,41747113.061617002]
["ED_REV311_00004","DREV0104","Revenue from Shoulder period Energy Delivery Charges",null,7845878.7535427641]
["ED_REV311_00005","DREV0105","Revenue from Off–Peak Energy Delivery charges ",null,3932309.4773605526]
["ED_REV311_00006","DREV0106","Revenue from controlled load customer charges",null,967887.87019748508]
["ED_REV311_00007","DREV0107","Revenue from unmetered supplies",null,4561036.1595208459]
["ED_REV311_00008","DREV0108","Revenue from Contracted Maximum Demand charges",null,1280155.7800319514]
["ED_REV311_00009","DREV0109","Revenue from Measured Maximum Demand charges",null,40063424.01785031]
["ED_REV311_00010","DREV0110","Revenue from metering charges",null,null,14087000.000000006]
["ED_REV311_00011","DREV0111","Revenue from connection charges"]
["ED_REV311_00012","DREV0112","Revenue from public lighting charges",null,null,6390408.6100000003]
["ED_REV311_00013","DREV0113","Revenue from other Sources",null,9739205.7259510309,5516464.8800009433]
[null,"DREV01","Total revenue by chargeable quantity","$0's",{"$f":"SUM(E13:E25)","v":412702999.99999994},{"$f":"SUM(F13:F25)","v":25993873.490000948}]
[]
[null,null,"TABLE 3.1.2 REVENUE GROUPING BY CUSTOMER TYPE OR CLASS"]
["ED_REV312_00001","DREV0201","Revenue from residential Customers ",null,192458714.81341186,11456909.715550002]
["ED_REV312_00002","DREV0202","Revenue from Non residential customers not on demand tariffs ",null,116892156.4418993,1875924.5144500001]
["ED_REV312_00003","DREV0203","Revenue from Non-residential low voltage demand tariff customers ",null,39876806.962940864,5873.27]
["ED_REV312_00004","DREV0204","Revenue from Non-residential high voltage demand tariff customers ",null,23521958.753895771]
["ED_REV312_00005","DREV0205","Revenue from unmetered supplies",null,4561036.159520844,6390408.6100000003]
["ED_REV312_00006","DREV0206","Revenue from Other Customers",null,35392326.868331112,6264757.380000948]
[null,"DREV02","Total revenue by customer class","$0's",{"$f":"SUM(E29:E34)","v":412702999.99999976},{"$f":"SUM(F29:F34)","v":25993873.490000952}]
[]
[null,null,"TABLE 3.1.3 REVENUE (penalties) ALLOWED (deducted) THROUGH INCENTIVE SCHEMES"]
["ED_REV313_00001","DREV0301","EBSS"]
["ED_REV313_00002","DREV0302","STPIS"]
["ED_REV313_00003","DREV0303","F-Factor "]
["ED_REV313_00004","DREV0304","S-Factor True up"]
["ED_REV313_00005","DREV0305","Other"]
[null,"DREV03","Total revenue of incentive schemes","$0's",{"$f":"SUM(E38:E42)","v":0},{"$f":"SUM(F38:F42)","v":0}]

{"sheet":"3.2 Operating expenditure","index":3,"n_rows":219,"n_cols":6,"rows_kept":219,"cut":false,"hidden":false,"merged":[[11,4,11,5]]}
[null,null,"REGULATORY REPORTING STATEMENT",null,null,"Worksheet navigation"]
[null,null,{"$f":"dms_TradingName","v":"TasNetworks (D)"}]
[null,null,{"$f":"CONCATENATE(\"Benchmarking RIN response \",CRY)","v":"Benchmarking RIN response 2014-15"}]
[null,null,"3.2 OPERATING EXPENDITURE"]
[]
[]
[null,null,"Instructions"]
[null,null,{"$f":"CONCATENATE(dms_TradingName, \" must fill in opex in table 3.2.1 for opex categories reported in response to its annual reporting RIN.\")","v":"TasNetworks (D) must fill in opex in table 3.2.1 for opex categories reported in response to its annual reporting RIN."}]
[]
[null,null,null,null,"20160127 - Data in these tables has been manually multiplied by 1000 - SH "]
[null,null,null,null,"Standard control services","Alternative control services"]
[null,null,null,null,"Actual\n($0's)"]
["ED_OPX3211",null,null,null,{"$f":"CRY","v":"2014-15"},{"$f":"CRY","v":"2014-15"}]
[]
[null,null,"TABLE 3.2.1 - OPEX CATEGORIES"]
[]
[null,null,"Table 3.2.1.1 Current opex categories  and cost allocations"]
["ED_OPX3211_00001","DOPEX0101","Overhead network & structures",null,{"$f":"(3073.08365)*1000","v":3073083.65}]
["ED_OPX3211_00002","DOPEX0102","Underground network",null,{"$f":"(129.51881)*1000","v":129518.81}]
["ED_OPX3211_00003","DOPEX0103","Ground mounted substations",null,{"$f":"(549.55222)*1000","v":549552.22000000009}]
["ED_OPX3211_00004","DOPEX0104","Zone substations",null,{"$f":"(979.69691)*1000","v":979696.91}]
["ED_OPX3211_00005","DOPEX0105","Decommissioned assets",null,{"$f":"(0)*1000","v":0}]
["ED_OPX3211_00006","DOPEX0106","Connection assets",null,{"$f":"(0)*1000","v":0}]
["ED_OPX3211_00007","DOPEX0107","Other Network asset maintenance - routine costs",null,{"$f":"(1770.39695)*1000","v":1770396.95}]
["ED_OPX3211_00008","DOPEX0108","Emergency & unscheduled power system response & repair",null,{"$f":"(0)*1000","v":0}]
["ED_OPX3211_00009","DOPEX0109","Vegetation management",null,{"$f":"(10971.58246)*1000","v":10971582.459999999}]
["ED_OPX3211_00010","DOPEX0110","Connection asset repair",null,{"$f":"(610.48364)*1000","v":610483.64}]
["ED_OPX3211_00011","DOPEX0111","Other Non-network asset maintenance - routine costs ",null,{"$f":"(0)*1000","v":0}]
["ED_OPX3211_00012","DOPEX0112","Overhead network & structures",null,{"$f":"(3405.29997)*1000","v":3405299.97}]
["ED_OPX3211_00013","DOPEX0113","Underground network",null,{"$f":"(337.18004)*1000","v":337180.04000000004}]
["ED_OPX3211_00014","DOPEX0114","Ground mounted substations",null,{"$f":"(483.41973)*1000","v":483419.73000000004}]
["ED_OPX3211_00015","DOPEX0115","Zone substations",null,{"$f":"(37.07151)*1000","v":37071.51}]
["ED_OPX3211_00016","DOPEX0116","Decommissioned assets",null,{"$f":"(906.669689999999)*1000","v":906669.68999999901}]
["ED_OPX3211_00017","DOPEX0117","Connection assets",null,{"$f":"(0)*1000","v":0}]
["ED_OPX3211_00018","DOPEX0118","Other Network asset maintenance - non-routine costs ",null,{"$f":"(866.41716)*1000","v":866417.15999999992}]
["ED_OPX3211_00019","DOPEX0119","Emergency & unscheduled power system response & repair",null,{"$f":"(15966.37962)*1000","v":15966379.619999999}]
["ED_OPX3211_00020","DOPEX0120","Vegetation management",null,{"$f":"(50.48606)*1000","v":50486.060000000005}]
["ED_OPX3211_00021","DOPEX0121","Connection asset repair",null,{"$f":"(60.23643)*1000","v":60236.43}]
["ED_OPX3211_00022","DOPEX0122","Other Non-network asset maintenance - non-routine costs ",null,{"$f":"(313.61759)*1000","v":313617.59000000003}]
["ED_OPX3211_00023","DOPEX0123","Public Lighting",null,null,{"$f":"(3077.54133)*1000","v":3077541.33}]
["ED_OPX3211_00024","DOPEX0124","Metering",null,null,{"$f":"(3914.43143)*1000","v":3914431.43}]
["ED_OPX3211_00025","DOPEX0125","Fee Based",null,null,{"$f":"(3372.6573)*1000","v":3372657.3}]
["ED_OPX3211_00026","DOPEX0126","Quoted Services",null,null,{"$f":"(2166.31287)*1000","v":2166312.87}]
["ED_OPX3211_00027","DOPEX0127","Negotiated Services"]
["ED_OPX3211_00028","DOPEX0128","Network management",null,{"$f":"(5734.26203975155)*1000","v":5734262.0397515502},{"$f":"(1932.23404939909)*1000","v":1932234.04939909}]
["ED_OPX3211_00029","DOPEX0129","GSL payments",null,{"$f":"(3398.74751)*1000","v":3398747.5100000002}]
["ED_OPX3211_00030","DOPEX0130","Customer service",null,{"$f":"(1100.73285883448)*1000","v":1100732.8588344802},{"$f":"(1892.9535077142)*1000","v":1892953.5077142001}]
["ED_OPX3211_00031","DOPEX0131","Regulatory compliance expenditure",null,{"$f":"(493.850225409752)*1000","v":493850.22540975199},{"$f":"(150.136243681409)*1000","v":150136.24368140902}]
["ED_OPX3211_00032","DOPEX0132","Electrical safety levy",null,{"$f":"(1912.10187370984)*1000","v":1912101.87370984},{"$f":"(581.55975339254)*1000","v":581559.75339253992}]
["ED_OPX3211_00033","DOPEX0133","NEM levy",null,{"$f":"(390.175438496758)*1000","v":390175.438496758},{"$f":"(118.670628857108)*1000","v":118670.62885710799}]
["ED_OPX3211_00034","DOPEX0134","Other Network Division Management Costs (itemise in table 3)",null,{"$f":"(871.18459)*1000","v":871184.59}]
["ED_OPX3211_00035","DOPEX0135","System operations",null,{"$f":"(132.12352)*1000","v":132123.52000000002}]
["ED_OPX3211_00036","DOPEX0136","Corporate and shared services costs",null,{"$f":"(7954.60263065027)*1000","v":7954602.6306502698},{"$f":"(1521.31810766997)*1000","v":1521318.10766997}]
["ED_OPX3211_00037","DOPEX0137","NEM & contestability related costs *",null,{"$f":"(1151.42002400675)*1000","v":1151420.02400675},{"$f":"(350.045152172402)*1000","v":350045.15217240201}]
["ED_OPX3211_00038","DOPEX0138","Other Non-Network Division Management Costs ",null,{"$f":"(498.073239427768)*1000","v":498073.23942776799}]
["ED_OPX3211_00039","DOPEX0139","Other Operating Costs ( Not allocated to the Distribution)"]
[null,"DOPEX0140"]
[null,"DOPEX0141"]
[null,"DOPEX0142"]
[null,"DOPEX01","Total opex ","($0's)",{"$f":"SUM(E18:E59)","v":64148366.390287183},{"$f":"SUM(F18:F59)","v":19077860.372886717}]
[]
[]
["ED_OPX3212A",null,"Table 3.2.1.2A - Historical opex categories and cost allocations",null,{"$f":"CRY","v":"2014-15"},{"$f":"CRY","v":"2014-15"}]
["ED_OPX3212A_00001","DOPEX0101A"]
["ED_OPX3212A_00002","DOPEX0102A"]
["ED_OPX3212A_00003","DOPEX0103A"]
["ED_OPX3212A_00004","DOPEX0104A"]
["ED_OPX3212A_00005","DOPEX0105A"]
["ED_OPX3212A_00006","DOPEX0106A"]
["ED_OPX3212A_00007","DOPEX0107A"]
["ED_OPX3212A_00008","DOPEX0108A"]
["ED_OPX3212A_00009","DOPEX0109A"]
["ED_OPX3212A_00010","DOPEX0110A"]
["ED_OPX3212A_00011","DOPEX0111A"]
["ED_OPX3212A_00012","DOPEX0112A"]
["ED_OPX3212A_00013","DOPEX0113A"]
["ED_OPX3212A_00014","DOPEX0114A"]
["ED_OPX3212A_00015","DOPEX0115A"]
["ED_OPX3212A_00016","DOPEX0116A"]
["ED_OPX3212A_00017","DOPEX0117A"]
["ED_OPX3212A_00018","DOPEX0118A"]
["ED_OPX3212A_00019","DOPEX0119A"]
["ED_OPX3212A_00020","DOPEX0120A"]
["ED_OPX3212A_00021","DOPEX0121A"]
["ED_OPX3212A_00022","DOPEX0122A"]
["ED_OPX3212A_00023","DOPEX0123A"]
["ED_OPX3212A_00024","DOPEX0124A"]
["ED_OPX3212A_00025","DOPEX0125A"]
["ED_OPX3212A_00026","DOPEX0126A"]
["ED_OPX3212A_00027","DOPEX0127A"]
["ED_OPX3212A_00028","DOPEX0128A"]
["ED_OPX3212A_00029","DOPEX0129A"]
["ED_OPX3212A_00030","DOPEX0130A"]
["ED_OPX3212A_00031","DOPEX0131A"]
["ED_OPX3212A_00032","DOPEX0132A"]
["ED_OPX3212A_00033","DOPEX0133A"]
["ED_OPX3212A_00034","DOPEX0134A"]
["ED_OPX3212A_00035","DOPEX0135A"]
["ED_OPX3212A_00036","DOPEX0136A"]
["ED_OPX3212A_00037","DOPEX0137A"]
["ED_OPX3212A_00038","DOPEX0138A"]
["ED_OPX3212A_00039","DOPEX0139A"]
["ED_OPX3212A_00040","DOPEX0140A"]
["ED_OPX3212A_00041","DOPEX0141A"]
["ED_OPX3212A_00042","DOPEX0142A"]
[null,"DOPEX01A","Total opex ","($0's)",{"$f":"SUM(E64:E105)","v":0},{"$f":"SUM(F64:F105)","v":0}]
[]
["ED_OPX3212B",null,"Table 3.2.1.2B - Historical opex categories and cost allocations",null,{"$f":"CRY","v":"2014-15"},{"$f":"CRY","v":"2014-15"}]
["ED_OPX3212B_00001","DOPEX0101B"]
["ED_OPX3212B_00002","DOPEX0102B"]
["ED_OPX3212B_00003","DOPEX0103B"]
["ED_OPX3212B_00004","DOPEX0104B"]
["ED_OPX3212B_00005","DOPEX0105B"]
["ED_OPX3212B_00006","DOPEX0106B"]
["ED_OPX3212B_00007","DOPEX0107B"]
["ED_OPX3212B_00008","DOPEX0108B"]
["ED_OPX3212B_00009","DOPEX0109B"]
["ED_OPX3212B_00010","DOPEX0110B"]
["ED_OPX3212B_00011","DOPEX0111B"]
["ED_OPX3212B_00012","DOPEX0112B"]
["ED_OPX3212B_00013","DOPEX0113B"]
["ED_OPX3212B_00014","DOPEX0114B"]
["ED_OPX3212B_00015","DOPEX0115B"]
["ED_OPX3212B_00016","DOPEX0116B"]
["ED_OPX3212B_00017","DOPEX0117B"]
["ED_OPX3212B_00018","DOPEX0118B"]
["ED_OPX3212B_00019","DOPEX0119B"]
["ED_OPX3212B_00020","DOPEX0120B"]
["ED_OPX3212B_00021","DOPEX0121B"]
["ED_OPX3212B_00022","DOPEX0122B"]
["ED_OPX3212B_00023","DOPEX0123B"]
["ED_OPX3212B_00024","DOPEX0124B"]
["ED_OPX3212B_00025","DOPEX0125B"]
["ED_OPX3212B_00026","DOPEX0126B"]
["ED_OPX3212B_00027","DOPEX0127B"]
["ED_OPX3212B_00028","DOPEX0128B"]
["ED_OPX3212B_00029","DOPEX0129B"]
["ED_OPX3212B_00030","DOPEX0130B"]
["ED_OPX3212B_00031","DOPEX0131B"]
["ED_OPX3212B_00032","DOPEX0132B"]
["ED_OPX3212B_00033","DOPEX0133B"]
["ED_OPX3212B_00034","DOPEX0134B"]
["ED_OPX3212B_00035","DOPEX0135B"]
["ED_OPX3212B_00036","DOPEX0136B"]
["ED_OPX3212B_00037","DOPEX0137B"]
["ED_OPX3212B_00038","DOPEX0138B"]
["ED_OPX3212B_00039","DOPEX0139B"]
["ED_OPX3212B_00040","DOPEX0140B"]
["ED_OPX3212B_00041","DOPEX0141B"]
["ED_OPX3212B_00042","DOPEX0142B"]
[null,"DOPEX01B","Total opex ","($0's)",{"$f":"SUM(E109:E150)","v":0},{"$f":"SUM(F109:F150)","v":0}]
[]
["ED_OPX3212C",null,"Table 3.2.1.2C - Historical opex categories and cost allocations",null,{"$f":"CRY","v":"2014-15"},{"$f":"CRY","v":"2014-15"}]
["ED_OPX3212C_00001","DOPEX0101C"]
["ED_OPX3212C_00002","DOPEX0102C"]
["ED_OPX3212C_00003","DOPEX0103C"]
["ED_OPX3212C_00004","DOPEX0104C"]
["ED_OPX3212C_00005","DOPEX0105C"]
["ED_OPX3212C_00006","DOPEX0106C"]
["ED_OPX3212C_00007","DOPEX0107C"]
["ED_OPX3212C_00008","DOPEX0108C"]
["ED_OPX3212C_00009","DOPEX0109C"]
["ED_OPX3212C_00010","DOPEX0110C"]
["ED_OPX3212C_00011","DOPEX0111C"]
["ED_OPX3212C_00012","DOPEX0112C"]
["ED_OPX3212C_00013","DOPEX0113C"]
["ED_OPX3212C_00014","DOPEX0114C"]
["ED_OPX3212C_00015","DOPEX0115C"]
["ED_OPX3212C_00016","DOPEX0116C"]
["ED_OPX3212C_00017","DOPEX0117C"]
["ED_OPX3212C_00018","DOPEX0118C"]
["ED_OPX3212C_00019","DOPEX0119C"]
["ED_OPX3212C_00020","DOPEX0120C"]
["ED_OPX3212C_00021","DOPEX0121C"]
["ED_OPX3212C_00022","DOPEX0122C"]
["ED_OPX3212C_00023","DOPEX0123C"]
["ED_OPX3212C_00024","DOPEX0124C"]
["ED_OPX3212C_00025","DOPEX0125C"]
["ED_OPX3212C_00026","DOPEX0126C"]
["ED_OPX3212C_00027","DOPEX0127C"]
["ED_OPX3212C_00028","DOPEX0128C"]
["ED_OPX3212C_00029","DOPEX0129C"]
["ED_OPX3212C_00030","DOPEX0130C"]
["ED_OPX3212C_00031","DOPEX0131C"]
["ED_OPX3212C_00032","DOPEX0132C"]
["ED_OPX3212C_00033","DOPEX0133C"]
["ED_OPX3212C_00034","DOPEX0134C"]
["ED_OPX3212C_00035","DOPEX0135C"]
["ED_OPX3212C_00036","DOPEX0136C"]
["ED_OPX3212C_00037","DOPEX0137C"]
["ED_OPX3212C_00038","DOPEX0138C"]
["ED_OPX3212C_00039","DOPEX0139C"]
["ED_OPX3212C_00040","DOPEX0140C"]
["ED_OPX3212C_00041","DOPEX0141C"]
["ED_OPX3212C_00042","DOPEX0142C"]
[null,"DOPEX01C","Total opex ","($0's)",{"$f":"SUM(E154:E195)","v":0},{"$f":"SUM(F154:F195)","v":0}]
[]
[null,null,"TABLE 3.2.2 - OPEX CONSISTENCY"]
[]
[null,null,"Table 3.2.2.1  Opex consistency - current cost allocation approach",null,{"$f":"CRY","v":"2014-15"},{"$f":"CRY","v":"2014-15"}]
["ED_OPX3221_00001","DOPEX0201","Opex for network services",null,{"$f":"(64088.1299602872)*1000","v":64088129.960287206},{"$f":"(3298.12486488177)*1000","v":3298124.8648817702}]
["ED_OPX3221_00002","DOPEX0202","Opex for metering",null,{"$f":"(0)*1000","v":0},{"$f":"(5959.56558719873)*1000","v":5959565.5871987306}]
["ED_OPX3221_00003","DOPEX0203","Opex for connection services",null,{"$f":"(60.23643)*1000","v":60236.43},{"$f":"(5134.73610201791)*1000","v":5134736.1020179093}]
["ED_OPX3221_00004","DOPEX0204","Opex for public lighting",null,{"$f":"(0)*1000","v":0},{"$f":"(4685.43381878829)*1000","v":4685433.81878829}]
["ED_OPX3221_00005","DOPEX0205","Opex for amounts payable for easement levy or similar direct charges on DNSP"]
["ED_OPX3221_00006","DOPEX0206","Opex for transmission connection point planning"]
[null,null,"Total opex ","($0's)",{"$f":"SUM(E201:E206)","v":64148366.390287206},{"$f":"SUM(F201:F206)","v":19077860.372886702}]
[]
[null,null,"Table 3.2.2.2  Opex consistency - historical cost allocation approaches",null,{"$f":"CRY","v":"2014-15"},{"$f":"CRY","v":"2014-15"}]
["ED_OPX3222_00001","DOPEX0201A","Opex for network services"]
["ED_OPX3222_00002","DOPEX0202A","Opex for metering"]
["ED_OPX3222_00003","DOPEX0203A","Opex for connection services"]
["ED_OPX3222_00004","DOPEX0204A","Opex for public lighting"]
["ED_OPX3222_00005","DOPEX0205A","Opex for amounts payable for easement levy or similar direct charges on DNSP"]
["ED_OPX3222_00006","DOPEX0206A","Opex for transmission connection point planning"]
[null,null,"Total opex ","($0's)",{"$f":"SUM(E210:E215)","v":0},{"$f":"SUM(F210:F215)","v":0}]
[]
[null,null,"TABLE 3.2.4 - OPEX FOR HIGH VOLTAGE CUSTOMERS",null,"End user costs (not standard control services)"]
["ED_OPX324_00001","DOPEX0401","Opex for high voltage customers","($0's)",249444]

{"sheet":"3.2.3 Provisions","index":4,"n_rows":373,"n_cols":3,"rows_kept":373,"cut":false,"hidden":false,"merged":[]}
[null,"REGULATORY REPORTING STATEMENT"]
[null,{"$f":"dms_TradingName","v":"TasNetworks (D)"}]
[null,{"$f":"CONCATENATE(\"Benchmarking RIN response \",CRY)","v":"Benchmarking RIN response 2014-15"}]
[null,"3.2 OPERATING EXPENDITURE"]
[]
[null,"Instructions"]
[null,{"$f":"CONCATENATE(dms_TradingName, \" must fill in opex in table 3.2.3 for opex categories reported in response to its annual reporting RIN.\")","v":"TasNetworks (D) must fill in opex in table 3.2.3 for opex categories reported in response to its annual reporting RIN."}]
[]
[null,"TABLE 3.2.3 - PROVISIONS"]
[null,"For each provision report:"]
[null,null,"$0's"]
[null,null,{"$f":"CRY","v":"2014-15"}]
[]
["DOPEX03A","Long Service Leave"]
[null,"Long Service Leave"]
["DOPEX0301A","Opening balance (the carrying amount at the beginning of the period)",7974986.49089598]
[null,"Additional provisions made in the period, including increases to existing provisions"]
["DOPEX0302A","Opex component",369224.46233793814]
["DOPEX0303A","Capex component",151442.73766206185]
["DOPEX0304A","Other component",648195.5006647862]
[null,"Amounts used (that is, incurred and charged against the provision) during the period"]
["DOPEX0305A","Opex component",-916307.04982646834]
["DOPEX0306A","Capex component",-375836.55017353158]
["DOPEX0307A","Other component"]
[null,"Unused amounts reversed during the period"]
["DOPEX0308A","Opex component"]
["DOPEX0309A","Capex component"]
["DOPEX0310A","Other component"]
[null,"The increase during the period in the discounted amount arising from the passage of time and the effect of any change in the discount rate"]
["DOPEX0311A","Opex component"]
["DOPEX0312A","Capex component"]
["DOPEX0313A","Other component"]
["DOPEX0314A","Closing balance (carrying amount at the end of the period)",7851705.5915607661]
["DOPEX03B","Annual Leave "]
[null,"Annual Leave "]
["DOPEX0301B","Opening balance (the carrying amount at the beginning of the period)",4491383.0372796701]
[null,"Additional provisions made in the period, including increases to existing provisions"]
["DOPEX0302B","Opex component",3120396.9804901355]
["DOPEX0303B","Capex component",1279875.8195098643]
["DOPEX0304B","Other component",938486.49338451924]
[null,"Amounts used (that is, incurred and charged against the provision) during the period"]
["DOPEX0305B","Opex component",-3380992.904365845]
["DOPEX0306B","Capex component",-1386762.9956341551]
["DOPEX0307B","Other component"]
[null,"Unused amounts reversed during the period"]
["DOPEX0308B","Opex component"]
["DOPEX0309B","Capex component"]
["DOPEX0310B","Other component"]
[null,"The increase during the period in the discounted amount arising from the passage of time and the effect of any change in the discount rate"]
["DOPEX0311B","Opex component"]
["DOPEX0312B","Capex component"]
["DOPEX0313B","Other component"]
["DOPEX0314B","Closing balance (carrying amount at the end of the period)",5062386.4306641892]
["DOPEX03C","RBF "]
[null,"RBF "]
["DOPEX0301C","Opening balance (the carrying amount at the beginning of the period)",79850722.913361385]
[null,"Additional provisions made in the period, including increases to existing provisions"]
["DOPEX0302C","Opex component",1572018.1757772274]
["DOPEX0303C","Capex component",644785.92422277259]
["DOPEX0304C","Other component",11816597.599373499]
[null,"Amounts used (that is, incurred and charged against the provision) during the period"]
["DOPEX0305C","Opex component",-5132557.7317982586]
["DOPEX0306C","Capex component",-2105192.5682017412]
["DOPEX0307C","Other component"]
[null,"Unused amounts reversed during the period"]
["DOPEX0308C","Opex component"]
["DOPEX0309C","Capex component"]
["DOPEX0310C","Other component"]
[null,"The increase during the period in the discounted amount arising from the passage of time and the effect of any change in the discount rate"]
["DOPEX0311C","Opex component"]
["DOPEX0312C","Capex component"]
["DOPEX0313C","Other component"]
["DOPEX0314C","Closing balance (carrying amount at the end of the period)",86646374.312734887]
["DOPEX03D","SAF (Part)"]
[null,"SAF (Part)"]
["DOPEX0301D","Opening balance (the carrying amount at the beginning of the period)",1111038.9691221144]
[null,"Additional provisions made in the period, including increases to existing provisions"]
["DOPEX0302D","Opex component",2474254.171398744]
["DOPEX0303D","Capex component",1014851.0286012561]
["DOPEX0304D","Other component"]
[null,"Amounts used (that is, incurred and charged against the provision) during the period"]
["DOPEX0305D","Opex component",-2118537.9210975594]
["DOPEX0306D","Capex component",-868948.87890244031]
["DOPEX0307D","Other component",-295345.63298931514]
[null,"Unused amounts reversed during the period"]
["DOPEX0308D","Opex component"]
["DOPEX0309D","Capex component"]
["DOPEX0310D","Other component"]
[null,"The increase during the period in the discounted amount arising from the passage of time and the effect of any change in the discount rate"]
["DOPEX0311D","Opex component"]
["DOPEX0312D","Capex component"]
["DOPEX0313D","Other component"]
["DOPEX0314D","Closing balance (carrying amount at the end of the period)",1317311.7361327999]
["DOPEX03E","Public Holidays"]
[null,"Public Holidays"]
["DOPEX0301E","Opening balance (the carrying amount at the beginning of the period)",0]
[null,"Additional provisions made in the period, including increases to existing provisions"]
["DOPEX0302E","Opex component",1160580.5508244333]
["DOPEX0303E","Capex component",476028.8491755664]
["DOPEX0304E","Other component",0]
[null,"Amounts used (that is, incurred and charged against the provision) during the period"]
["DOPEX0305E","Opex component",-1160580.5508244333]
["DOPEX0306E","Capex component",-476028.8491755664]
["DOPEX0307E","Other component"]
[null,"Unused amounts reversed during the period"]
["DOPEX0308E","Opex component"]
["DOPEX0309E","Capex component"]
["DOPEX0310E","Other component"]
[null,"The increase during the period in the discounted amount arising from the passage of time and the effect of any change in the discount rate"]
["DOPEX0311E","Opex component"]
["DOPEX0312E","Capex component"]
["DOPEX0313E","Other component"]
["DOPEX0314E","Closing balance (carrying amount at the end of the period)",0]
["DOPEX03F","Sick Leave"]
[null,"Sick Leave"]
["DOPEX0301F","Opening balance (the carrying amount at the beginning of the period)",0]
[null,"Additional provisions made in the period, including increases to existing provisions"]
["DOPEX0302F","Opex component",683853.23436066275]
["DOPEX0303F","Capex component",280492.26563933713]
["DOPEX0304F","Other component",0]
[null,"Amounts used (that is, incurred and charged against the provision) during the period"]
["DOPEX0305F","Opex component",-683853.23436066275]
["DOPEX0306F","Capex component",-280492.26563933713]
["DOPEX0307F","Other component"]
[null,"Unused amounts reversed during the period"]
["DOPEX0308F","Opex component"]
["DOPEX0309F","Capex component"]
["DOPEX0310F","Other component"]
[null,"The increase during the period in the discounted amount arising from the passage of time and the effect of any change in the discount rate"]
["DOPEX0311F","Opex component"]
["DOPEX0312F","Capex component"]
["DOPEX0313F","Other component"]
["DOPEX0314F","Closing balance (carrying amount at the end of the period)",0]
["DOPEX03G","Time Bank"]
[null,"Time Bank"]
["DOPEX0301G","Opening balance (the carrying amount at the beginning of the period)",151287.00660236279]
[null,"Additional provisions made in the period, including increases to existing provisions"]
["DOPEX0302G","Opex component",48404.426465034572]
["DOPEX0303G","Capex component",19853.773534965432]
["DOPEX0304G","Other component"]
[null,"Amounts used (that is, incurred and charged against the provision) during the period"]
["DOPEX0305G","Opex component",-24765.055400715359]
["DOPEX0306G","Capex component",-10157.744599284637]
["DOPEX0307G","Other component",-37721.461972168967]
[null,"Unused amounts reversed during the period"]
["DOPEX0308G","Opex component"]
["DOPEX0309G","Capex component"]
["DOPEX0310G","Other component"]
[null,"The increase during the period in the discounted amount arising from the passage of time and the effect of any change in the discount rate"]
["DOPEX0311G","Opex component"]
["DOPEX0312G","Capex component"]
["DOPEX0313G","Other component"]
["DOPEX0314G","Closing balance (carrying amount at the end of the period)",146900.94463019384]
["DOPEX03H","Workers' Compensation"]
[null,"Workers Compensation"]
["DOPEX0301H","Opening balance (the carrying amount at the beginning of the period)",14408.286343082123]
[null,"Additional provisions made in the period, including increases to existing provisions"]
["DOPEX0302H","Opex component",437891.20685810345]
["DOPEX0303H","Capex component",179607.39314189655]
["DOPEX0304H","Other component",320644.65464817762]
[null,"Amounts used (that is, incurred and charged against the provision) during the period"]
["DOPEX0305H","Opex component",-195869.07453293059]
["DOPEX0306H","Capex component",-80338.525467069412]
["DOPEX0307H","Other component"]
[null,"Unused amounts reversed during the period"]
["DOPEX0308H","Opex component"]
["DOPEX0309H","Capex component"]
["DOPEX0310H","Other component"]
[null,"The increase during the period in the discounted amount arising from the passage of time and the effect of any change in the discount rate"]
["DOPEX0311H","Opex component"]
["DOPEX0312H","Capex component"]
["DOPEX0313H","Other component"]
["DOPEX0314H","Closing balance (carrying amount at the end of the period)",676343.94099125965]
["DOPEX03I","Payroll Tax"]
[null,"Payroll Tax"]
["DOPEX0301I","Opening balance (the carrying amount at the beginning of the period)",864497.1805849307]
[null,"Additional provisions made in the period, including increases to existing provisions"]
["DOPEX0302I","Opex component",2481571.1195853185]
["DOPEX0303I","Capex component",1017852.1804146811]
["DOPEX0304I","Other component"]
[null,"Amounts used (that is, incurred and charged against the provision) during the period"]
["DOPEX0305I","Opex component",-2341423.4197039977]
["DOPEX0306I","Capex component",-960368.58029600221]
["DOPEX0307I","Other component",-216098.95865348744]
[null,"Unused amounts reversed during the period"]
["DOPEX0308I","Opex component"]
["DOPEX0309I","Capex component"]
["DOPEX0310I","Other component"]
[null,"The increase during the period in the discounted amount arising from the passage of time and the effect of any change in the discount rate"]
["DOPEX0311I","Opex component"]
["DOPEX0312I","Capex component"]
["DOPEX0313I","Other component"]
["DOPEX0314I","Closing balance (carrying amount at the end of the period)",846029.52193144313]
["DOPEX03J","Provision name"]
[null,"Brief description of provision"]
["DOPEX0301J","Opening balance (the carrying amount at the beginning of the period)"]
[null,"Additional provisions made in the period, including increases to existing provisions"]
["DOPEX0302J","Opex component"]
["DOPEX0303J","Capex component"]
["DOPEX0304J","Other component"]
[null,"Amounts used (that is, incurred and charged against the provision) during the period"]
["DOPEX0305J","Opex component"]
["DOPEX0306J","Capex component"]
["DOPEX0307J","Other component"]
[null,"Unused amounts reversed during the period"]
["DOPEX0308J","Opex component"]
["DOPEX0309J","Capex component"]
["DOPEX0310J","Other component"]
[null,"The increase during the period in the discounted amount arising from the passage of time and the effect of any change in the discount rate"]
["DOPEX0311J","Opex component"]
["DOPEX0312J","Capex component"]
["DOPEX0313J","Other component"]
["DOPEX0314J","Closing balance (carrying amount at the end of the period)"]
["DOPEX03K","Provision name"]
[null,"Brief description of provision"]
["DOPEX0301K","Opening balance (the carrying amount at the beginning of the period)"]
[null,"Additional provisions made in the period, including increases to existing provisions"]
["DOPEX0302K","Opex component"]
["DOPEX0303K","Capex component"]
["DOPEX0304K","Other component"]
[null,"Amounts used (that is, incurred and charged against the provision) during the period"]
["DOPEX0305K","Opex component"]
["DOPEX0306K","Capex component"]
["DOPEX0307K","Other component"]
[null,"Unused amounts reversed during the period"]
["DOPEX0308K","Opex component"]
["DOPEX0309K","Capex component"]
["DOPEX0310K","Other component"]
[null,"The increase during the period in the discounted amount arising from the passage of time and the effect of any change in the discount rate"]
["DOPEX0311K","Opex component"]
["DOPEX0312K","Capex component"]
["DOPEX0313K","Other component"]
["DOPEX0314K","Closing balance (carrying amount at the end of the period)"]
["DOPEX03L","Provision name"]
[null,"Brief description of provision"]
["DOPEX0301L","Opening balance (the carrying amount at the beginning of the period)"]
[null,"Additional provisions made in the period, including increases to existing provisions"]
["DOPEX0302L","Opex component"]
["DOPEX0303L","Capex component"]
["DOPEX0304L","Other component"]
[null,"Amounts used (that is, incurred and charged against the provision) during the period"]
["DOPEX0305L","Opex component"]
["DOPEX0306L","Capex component"]
["DOPEX0307L","Other component"]
[null,"Unused amounts reversed during the period"]
["DOPEX0308L","Opex component"]
["DOPEX0309L","Capex component"]
["DOPEX0310L","Other component"]
[null,"The increase during the period in the discounted amount arising from the passage of time and the effect of any change in the discount rate"]
["DOPEX0311L","Opex component"]
["DOPEX0312L","Capex component"]
["DOPEX0313L","Other component"]
["DOPEX0314L","Closing balance (carrying amount at the end of the period)"]
["DOPEX03M","Provision name"]
[null,"Brief description of provision"]
["DOPEX0301M","Opening balance (the carrying amount at the beginning of the period)"]
[null,"Additional provisions made in the period, including increases to existing provisions"]
["DOPEX0302M","Opex component"]
["DOPEX0303M","Capex component"]
["DOPEX0304M","Other component"]
[null,"Amounts used (that is, incurred and charged against the provision) during the period"]
["DOPEX0305M","Opex component"]
["DOPEX0306M","Capex component"]
["DOPEX0307M","Other component"]
[null,"Unused amounts reversed during the period"]
["DOPEX0308M","Opex component"]
["DOPEX0309M","Capex component"]
["DOPEX0310M","Other component"]
[null,"The increase during the period in the discounted amount arising from the passage of time and the effect of any change in the discount rate"]
["DOPEX0311M","Opex component"]
["DOPEX0312M","Capex component"]
["DOPEX0313M","Other component"]
["DOPEX0314M","Closing balance (carrying amount at the end of the period)"]
["DOPEX03N","Provision name"]
[null,"Brief description of provision"]
["DOPEX0301N","Opening balance (the carrying amount at the beginning of the period)"]
[null,"Additional provisions made in the period, including increases to existing provisions"]
["DOPEX0302N","Opex component"]
["DOPEX0303N","Capex component"]
["DOPEX0304N","Other component"]
[null,"Amounts used (that is, incurred and charged against the provision) during the period"]
["DOPEX0305N","Opex component"]
["DOPEX0306N","Capex component"]
["DOPEX0307N","Other component"]
[null,"Unused amounts reversed during the period"]
["DOPEX0308N","Opex component"]
["DOPEX0309N","Capex component"]
["DOPEX0310N","Other component"]
[null,"The increase during the period in the discounted amount arising from the passage of time and the effect of any change in the discount rate"]
["DOPEX0311N","Opex component"]
["DOPEX0312N","Capex component"]
["DOPEX0313N","Other component"]
["DOPEX0314N","Closing balance (carrying amount at the end of the period)"]
["DOPEX03O","Provision name"]
[null,"Brief description of provision"]
["DOPEX0301O","Opening balance (the carrying amount at the beginning of the period)"]
[null,"Additional provisions made in the period, including increases to existing provisions"]
["DOPEX0302O","Opex component"]
["DOPEX0303O","Capex component"]
["DOPEX0304O","Other component"]
[null,"Amounts used (that is, incurred and charged against the provision) during the period"]
["DOPEX0305O","Opex component"]
["DOPEX0306O","Capex component"]
["DOPEX0307O","Other component"]
[null,"Unused amounts reversed during the period"]
["DOPEX0308O","Opex component"]
["DOPEX0309O","Capex component"]
["DOPEX0310O","Other component"]
[null,"The increase during the period in the discounted amount arising from the passage of time and the effect of any change in the discount rate"]
["DOPEX0311O","Opex component"]
["DOPEX0312O","Capex component"]
["DOPEX0313O","Other component"]
["DOPEX0314O","Closing balance (carrying amount at the end of the period)"]
["DOPEX03P","Provision name"]
[null,"Brief description of provision"]
["DOPEX0301P","Opening balance (the carrying amount at the beginning of the period)"]
[null,"Additional provisions made in the period, including increases to existing provisions"]
["DOPEX0302P","Opex component"]
["DOPEX0303P","Capex component"]
["DOPEX0304P","Other component"]
[null,"Amounts used (that is, incurred and charged against the provision) during the period"]
["DOPEX0305P","Opex component"]
["DOPEX0306P","Capex component"]
["DOPEX0307P","Other component"]
[null,"Unused amounts reversed during the period"]
["DOPEX0308P","Opex component"]
["DOPEX0309P","Capex component"]
["DOPEX0310P","Other component"]
[null,"The increase during the period in the discounted amount arising from the passage of time and the effect of any change in the discount rate"]
["DOPEX0311P","Opex component"]
["DOPEX0312P","Capex component"]
["DOPEX0313P","Other component"]
["DOPEX0314P","Closing balance (carrying amount at the end of the period)"]
["DOPEX03Q","Provision name"]
[null,"Brief description of provision"]
["DOPEX0301Q","Opening balance (the carrying amount at the beginning of the period)"]
[null,"Additional provisions made in the period, including increases to existing provisions"]
["DOPEX0302Q","Opex component"]
["DOPEX0303Q","Capex component"]
["DOPEX0304Q","Other component"]
[null,"Amounts used (that is, incurred and charged against the provision) during the period"]
["DOPEX0305Q","Opex component"]
["DOPEX0306Q","Capex component"]
["DOPEX0307Q","Other component"]
[null,"Unused amounts reversed during the period"]
["DOPEX0308Q","Opex component"]
["DOPEX0309Q","Capex component"]
["DOPEX0310Q","Other component"]
[null,"The increase during the period in the discounted amount arising from the passage of time and the effect of any change in the discount rate"]
["DOPEX0311Q","Opex component"]
["DOPEX0312Q","Capex component"]
["DOPEX0313Q","Other component"]
["DOPEX0314Q","Closing balance (carrying amount at the end of the period)"]
["DOPEX03R","Provision name"]
[null,"Brief description of provision"]
["DOPEX0301R","Opening balance (the carrying amount at the beginning of the period)"]
[null,"Additional provisions made in the period, including increases to existing provisions"]
["DOPEX0302R","Opex component"]
["DOPEX0303R","Capex component"]
["DOPEX0304R","Other component"]
[null,"Amounts used (that is, incurred and charged against the provision) during the period"]
["DOPEX0305R","Opex component"]
["DOPEX0306R","Capex component"]
["DOPEX0307R","Other component"]
[null,"Unused amounts reversed during the period"]
["DOPEX0308R","Opex component"]
["DOPEX0309R","Capex component"]
["DOPEX0310R","Other component"]
[null,"The increase during the period in the discounted amount arising from the passage of time and the effect of any change in the discount rate"]
["DOPEX0311R","Opex component"]
["DOPEX0312R","Capex component"]
["DOPEX0313R","Other component"]
["DOPEX0314R","Closing balance (carrying amount at the end of the period)"]

{"sheet":"3.3 Assets (RAB)","index":5,"n_rows":137,"n_cols":7,"rows_kept":137,"cut":false,"hidden":false,"merged":[[115,4,115,6],[7,4,7,6]]}
[null,null,"REGULATORY REPORTING STATEMENT"]
[null,null,{"$f":"dms_TradingName","v":"TasNetworks (D)"}]
[null,null,{"$f":"CONCATENATE(\"Benchmarking RIN response \",CRY)","v":"Benchmarking RIN response 2014-15"}]
[null,null,"3.3 ASSETS"]
[]
[]
[null,null,null,null,"Network services","Standard control services","Alternative control services"]
[null,null,null,null,"Actual\n($0's)"]
[null,null,null,null,{"$f":"CRY","v":"2014-15"},{"$f":"CRY","v":"2014-15"},"2014-15"]
[]
[null,null,"TABLE 3.3.1 - REGULATORY ASSET BASE VALUES"]
[null,null,"For total asset base:"]
["ED_RAB331_00001","DRAB0101","Opening value",null,1429838830.8700736,1519947883,47159135.204415344]
["ED_RAB331_00002","DRAB0102","Inflation addition",null,41894277.744493157,44534473,1381762.6614893698]
["ED_RAB331_00003","DRAB0103","Straight line depreciation",null,-78151523.411840618,-82214557,-5146346.8285922371]
["ED_RAB331_00004","DRAB0104"]
["ED_RAB331_00005","DRAB0105","Actual additions (recognised in RAB)",null,83202459.249480382,91096292,7147553.1865775092]
["ED_RAB331_00006","DRAB0106","Disposals ",null,718229.84100601333,718230,0]
["ED_RAB331_00007","DRAB0107","Closing value",null,{"$f":"SUM(E13+E14+E15+E17+E18)","v":1477502274.2932127},{"$f":"SUM(F13+F14+F15+F17+F18)","v":1574082321},{"$f":"SUM(G13+G14+G15+G17+G18)","v":50542104.223889984}]
[]
[null,null,"TABLE 3.3.2 - ASSET VALUE ROLL FORWARD"]
[null,null,"For overhead network assets less than 33kV:"]
["ED_RAB3321_00001","DRAB0201","Opening value",null,626933982.46013212,630706968]
["ED_RAB3321_00002","DRAB0202","Inflation addition",null,18369165.686081871,18479714]
["ED_RAB3321_00003","DRAB0203","Straight line depreciation",null,-31800219.795609597,-31918777]
["ED_RAB3321_00004","DRAB0204"]
["ED_RAB3321_00005","DRAB0205","Actual additions (recognised in RAB)",null,44987712.139885865,44987712]
["ED_RAB3321_00006","DRAB0206","Disposals ",null,-55000,-55000]
["ED_RAB3321_00007","DRAB0207","Closing value",null,{"$f":"SUM(E23+E24+E25+E27+E28)","v":658435640.49049032},{"$f":"SUM(F23+F24+F25+F27+F28)","v":662200617},0]
[null,null,"For underground network assets less than 33kV:"]
["ED_RAB3322_00001","DRAB0301","Opening value",null,361272110.69641608,363353449]
["ED_RAB3322_00002","DRAB0302","Inflation addition",null,10585272.84340499,10646256]
["ED_RAB3322_00003","DRAB0303","Straight line depreciation",null,-9076450.5190676674,-9113647]
["ED_RAB3322_00004","DRAB0304"]
["ED_RAB3322_00005","DRAB0305","Actual additions (recognised in RAB)",null,8852219.9947038405,8852220]
["ED_RAB3322_00006","DRAB0306","Disposals ",null,0,0]
["ED_RAB3322_00007","DRAB0307","Closing value",null,{"$f":"SUM(E31+E32+E33+E35+E36)","v":371633153.01545727},{"$f":"SUM(F31+F32+F33+F35+F36)","v":373738278},0]
[null,null,"For distribution substations and transformers:"]
["ED_RAB3323_00001","DRAB0401","Opening value",null,226183615.88469273,227672909]
["ED_RAB3323_00002","DRAB0402","Inflation addition",null,6627179.9454214964,6670816]
["ED_RAB3323_00003","DRAB0403","Straight line depreciation",null,-10666581.108501604,-10707216]
["ED_RAB3323_00004","DRAB0404"]
["ED_RAB3323_00005","DRAB0405","Actual additions (recognised in RAB)",null,12067808.224110022,12067808]
["ED_RAB3323_00006","DRAB0406","Disposals ",null,49665,49665]
["ED_RAB3323_00007","DRAB0407","Closing value",null,{"$f":"SUM(E39+E40+E41+E43+E44)","v":234261687.94572264},{"$f":"SUM(F39+F40+F41+F43+F44)","v":235753982},0]
[null,null,"For overhead network assets 33kV and above:"]
["ED_RAB3324_00001","DRAB0501","Opening value",null,12308207.843817541,12341008]
["ED_RAB3324_00002","DRAB0502","Inflation addition",null,360630.489823854,361592]
["ED_RAB3324_00003","DRAB0503","Straight line depreciation",null,-391013.65062092227,-391722]
["ED_RAB3324_00004","DRAB0504"]
["ED_RAB3324_00005","DRAB0505","Actual additions (recognised in RAB)",null,352620.8218922157,352621]
["ED_RAB3324_00006","DRAB0506","Disposals ",null,0,0]
["ED_RAB3324_00007","DRAB0507","Closing value",null,{"$f":"SUM(E47+E48+E49+E51+E52)","v":12630445.504912687},{"$f":"SUM(F47+F48+F49+F51+F52)","v":12663499},0]
[null,null,"For underground network assets 33kV and above:"]
["ED_RAB3325_00001","DRAB0601","Opening value",null,10183408.863012763,10194867]
["ED_RAB3325_00002","DRAB0602","Inflation addition",null,298373.87968627398,298710]
["ED_RAB3325_00003","DRAB0603","Straight line depreciation",null,-266460.8953825332,-266666]
["ED_RAB3325_00004","DRAB0604"]
["ED_RAB3325_00005","DRAB0605","Actual additions (recognised in RAB)",null,11404.815071984527,11405]
["ED_RAB3325_00006","DRAB0606","Disposals ",null,0,0]
["ED_RAB3325_00007","DRAB0607","Closing value",null,{"$f":"SUM(E55+E56+E57+E59+E60)","v":10226726.662388489},{"$f":"SUM(F55+F56+F57+F59+F60)","v":10238316},0]
[null,null,"Zone substations and transformers"]
["ED_RAB3326_00001","DRAB0701","Opening value",null,49372680.760848016,49619297]
["ED_RAB3326_00002","DRAB0702","Inflation addition",null,1446619.5462928468,1453845]
["ED_RAB3326_00003","DRAB0703","Straight line depreciation",null,-1488996.7473536509,-1495726]
["ED_RAB3326_00004","DRAB0704"]
["ED_RAB3326_00005","DRAB0705","Actual additions (recognised in RAB)",null,1306432.7932148741,1306433]
["ED_RAB3326_00006","DRAB0706","Disposals ",null,0,0]
["ED_RAB3326_00007","DRAB0707","Closing value",null,{"$f":"SUM(E63+E64+E65+E67+E68)","v":50636736.353002086},{"$f":"SUM(F63+F64+F65+F67+F68)","v":50883849},0]
[null,null,"For easements:"]
["ED_RAB3327_00001","DRAB0801","Opening value"]
["ED_RAB3327_00002","DRAB0802","Inflation addition"]
["ED_RAB3327_00003","DRAB0805","Actual additions (recognised in RAB)"]
["ED_RAB3327_00004","DRAB0806","Disposals "]
["ED_RAB3327_00005","DRAB0807","Closing value",null,{"$f":"SUM(E71+E72+E73+E74)","v":0},{"$f":"SUM(F71+F72+F73+F74)","v":0},{"$f":"SUM(G71+G72+G73+G74)","v":0}]
[null,null,"For meters:"]
["ED_RAB3328_00001","DRAB0901","Opening value",null,null,null,40297977.89517051]
["ED_RAB3328_00002","DRAB0902","Inflation addition",null,null,null,1180730.752328496]
["ED_RAB3328_00003","DRAB0903","Straight line depreciation",null,null,null,-3502151.8033652217]
["ED_RAB3328_00004","DRAB0904"]
["ED_RAB3328_00005","DRAB0905","Actual additions (recognised in RAB)",null,null,null,4304767.1449633837]
["ED_RAB3328_00006","DRAB0906","Disposals ",null,null,null,0]
["ED_RAB3328_00007","DRAB0907","Closing value",null,{"$f":"SUM(E77+E78+E79+E81+E82)","v":0},{"$f":"SUM(F77+F78+F79+F81+F82)","v":0},42281323.989097163]
[null,null,"For “other” asset items with long lives:"]
["ED_RAB3329_00001","DRAB1001","Opening value",null,69085850.724875435,151560412,469128.34827496443]
["ED_RAB3329_00002","DRAB1002","Inflation addition",null,2024215.4262388502,4440720,13745.460604456457]
["ED_RAB3329_00003","DRAB1003","Straight line depreciation",null,-2367737.3098488152,-6226740,-28487.683038198116]
["ED_RAB3329_00004","DRAB1004"]
["ED_RAB3329_00005","DRAB1005","Actual additions (recognised in RAB)",null,1339020.0306011741,9232853,0]
["ED_RAB3329_00006","DRAB1006","Disposals ",null,0,0,0]
["ED_RAB3329_00007","DRAB1007","Closing value",null,{"$f":"SUM(E85+E86+E87+E89+E90)","v":70081348.871866643},{"$f":"SUM(F85+F86+F87+F89+F90)","v":159007245},454386.12584122276]
[null,null,"For “other” asset items with short lives:"]
["ED_RAB33210_00001","DRAB1101","Opening value",null,74498973.636278823,74498974,6392028.9609698718]
["ED_RAB33210_00002","DRAB1102","Inflation addition",null,2182819.9275429696,2182820,187286.44855641725]
["ED_RAB33210_00003","DRAB1103","Straight line depreciation",null,-22094063.385455821,-22094063,-1615707.3421888174]
["ED_RAB33210_00004","DRAB1104"]
["ED_RAB33210_00005","DRAB1105","Actual additions (recognised in RAB)",null,14285240.430000393,14285240,2842786.0416141255]
["ED_RAB33210_00006","DRAB1106","Disposals ",null,723564.84100601322,723565,0]
["ED_RAB33210_00007","DRAB1107","Closing value",null,{"$f":"SUM(E93+E94+E95+E97+E98)","v":69596535.449372381},{"$f":"SUM(F93+F94+F95+F97+F98)","v":69596536},7806394.1089515975]
[]
[null,null,"TABLE 3.3.3 - TOTAL DISAGGREGATED RAB ASSET VALUES"]
["ED_RAB333_00001","DRAB1201","Overhead distribution assets (wires and poles)",null,642684811.47531128,646453793,0]
["ED_RAB333_00002","DRAB1202","Underground distribution assets (cables, ducts etc)",null,366452631.85593665,368545863,0]
["ED_RAB333_00003","DRAB1203","Distribution substations including transformers",null,230222651.91520768,231713446,0]
["ED_RAB333_00004","DRAB1204","Overhead assets 33kV and above (wires and towers / poles etc)",null,12469326.674365114,12502253,0]
["ED_RAB333_00005","DRAB1205","Underground assets 33kV and above (cables, ducts etc)",null,10205067.762700625,10216592,0]
["ED_RAB333_00006","DRAB1206","Zone substations",null,50004708.556925051,50251573,0]
["ED_RAB333_00007","DRAB1207","Easements ",null,0,0,0]
["ED_RAB333_00008","DRAB1208","Meters",null,0,0,41289650.942133844]
["ED_RAB333_00009","DRAB1209","Other assets with long lives (please specify)",null,69583599.798371047,155283829,461757.23705809354]
["ED_RAB333_00010","DRAB1210","Other assets with short lives (please specify)",null,72047754.542825595,72047755,7099211.5349607337]
["ED_RAB333_00011"]
["ED_RAB333_00012"]
["ED_RAB333_00013","DRAB13","value of capital contributions or contributed assets (included in the above)"]
[]
[null,null,"TABLE 3.3.4 - ASSET LIVES",null,"Service Life (Years)"]
[null,null,"Table 3.3.4.1 Asset Lives – estimated service life of new assets",null,{"$f":"CRY","v":"2014-15"},{"$f":"CRY","v":"2014-15"},"2014-15"]
["ED_RAB3341_00001","DRAB1401","Overhead network assets less than 33kV (wires and poles)",null,35.000000000000007,35.000000000000007]
["ED_RAB3341_00002","DRAB1402","Underground network assets less than 33kV (cables)",null,60,60]
["ED_RAB3341_00003","DRAB1403","Distribution substations including transformers",null,40,40]
["ED_RAB3341_00004","DRAB1404","Overhead network assets 33kV and above (wires and towers / poles etc) ",null,50,50]
["ED_RAB3341_00005","DRAB1405","Underground network assets 33kV and above(cables, ducts etc)",null,60,60]
["ED_RAB3341_00006","DRAB1406","Zone substations and transformers",null,40,40]
["ED_RAB3341_00007","DRAB1407","Meters",null,0,0,20.175346140311806]
["ED_RAB3341_00008","DRAB1408","“Other” assets with long lives",null,40,33.8616961922977,20]
["ED_RAB3341_00009","DRAB1409","“Other” assets with short lives",null,4.8265046692498794,5.0853028409108276,4.8265046692498794]
[]
[null,null,"Table 3.3.4.2 Asset Lives – estimated residual service life"]
["ED_RAB3342_00001","DRAB1501","Overhead network assets less than 33kV (wires and poles)",null,14.514820659679568,14.514820659679568]
["ED_RAB3342_00002","DRAB1502","Underground network assets less than 33kV (cables)",null,37.641545374991651,37.641545374991651]
["ED_RAB3342_00003","DRAB1503","Distribution substations including transformers",null,18.177200439969226,18.177200439969226]
["ED_RAB3342_00004","DRAB1504","Overhead network assets 33kV and above (wires and towers / poles etc) ",null,29.809993853439586,29.809993853439586]
["ED_RAB3342_00005","DRAB1505","Underground network assets 33kV and above (cables, ducts etc)",null,36.104395082273044,36.104395082273044]
["ED_RAB3342_00006","DRAB1506","Zone substations and transformers",null,13.553039771312665,13.553039771312665]
["ED_RAB3342_00007","DRAB1507","Meters",null,0,0,14.271496761647265]
["ED_RAB3342_00008","DRAB1508","“Other” assets with long lives",null,22.880753542009014,11.794190561434672,6.2650510933713157]
["ED_RAB3342_00009","DRAB1509","“Other” assets with short lives",null,0.66316916779779123,0.83325137922782921,0.66316916779779123]

{"sheet":"3.4 Operational data","index":6,"n_rows":130,"n_cols":5,"rows_kept":130,"cut":false,"hidden":false,"merged":[]}
[null,null,"REGULATORY REPORTING STATEMENT"]
[null,null,{"$f":"dms_TradingName","v":"TasNetworks (D)"}]
[null,null,{"$f":"CONCATENATE(\"Benchmarking RIN response \",CRY)","v":"Benchmarking RIN response 2014-15"}]
[null,null,"3.4 OPERATIONAL DATA"]
[]
[]
[null,null,null,null,"Standard control services"]
[null,null,null,null,"Actual"]
[null,null,null,null,{"$f":"CRY","v":"2014-15"}]
[null,null,null,"Unit"]
[null,null,"TABLE 3.4.1 - ENERGY DELIVERY"]
["ED_OPD3410_00001","DOPED01","Total energy delivered","GWh",4185.7266220000001]
[]
[]
[null,null,"Table 3.4.1.1 Energy grouping - delivery by chargeable quantity"]
["ED_OPD3411_00001","DOPED0201","Energy Delivery where time of use is not a determinant","GWh",3222.5286440000004]
["ED_OPD3411_00002","DOPED0202","Energy Delivery at On-peak times","GWh",652.59748500000001]
["ED_OPD3411_00003","DOPED0203","Energy Delivery at Shoulder times ","GWh",220.42694699999998]
["ED_OPD3411_00004","DOPED0204","Energy Delivery at Off-peak times","GWh",0.56315800000000005]
["ED_OPD3411_00005","DOPED0205","Controlled load energy deliveries","GWh",58.360044000000009]
["ED_OPD3411_00005","DOPED0206","Energy Delivery to unmetered supplies","GWh",31.250343999999998]
[]
[null,null,"Table 3.4.1.2 Energy - received from TNSP and other DNSPs by time of receipt"]
["ED_OPD3412_00001","DOPED0301","Energy into DNSP network  at On-peak times","GWh"]
["ED_OPD3412_00002","DOPED0302","Energy into DNSP network  at Shoulder times ","GWh"]
["ED_OPD3412_00003","DOPED0303","Energy into DNSP network  at Off-peak times","GWh"]
["ED_OPD3412_00004","DOPED0304","Energy received from TNSP and other DNSPs not included in the above categories","GWh",4224.5002471460002]
[]
[null,null,"Table 3.4.1.3 Energy - received into DNSP system from embedded generation by time of receipt"]
["ED_OPD3413_00001","DOPED0401","Energy into DNSP network  at On-peak times from non-residential embedded generation","GWh",31.035568000000001]
["ED_OPD3413_00002","DOPED0402","Energy into DNSP network  at Shoulder times from non-residential embedded generation","GWh",12.148671999999999]
["ED_OPD3413_00003","DOPED0403","Energy into DNSP network  at Off-peak times from non-residential embedded generation","GWh",23.342172999999999]
["ED_OPD3413_00004","DOPED0404","Energy received from embedded generation not included in above categories from non-residential embedded generation","GWh",3.0595789999999998]
["ED_OPD3413_00005","DOPED0405","Energy into DNSP network  at On-peak times from residential embedded generation","GWh",2.2460000000000002E-3]
["ED_OPD3413_00006","DOPED0406","Energy into DNSP network  at Shoulder times from residential embedded generation","GWh",9.8200000000000002E-4]
["ED_OPD3413_00007","DOPED0407","Energy into DNSP network  at Off-peak times from residential embedded generation","GWh",5.8999999999999998E-5]
["ED_OPD3413_00008","DOPED0408","Energy received from embedded generation not included in above categories from residential embedded generation","GWh",59.850653000000001]
[]
[null,null,"Table 3.4.1.4 Energy grouping  - customer type or class"]
["ED_OPD3414_00001","DOPED0501","Residential customers energy deliveries","GWh",1883.4241946960001]
["ED_OPD3414_00002","DOPED0502","Non residential customers not on demand tariffs energy deliveries","GWh",976.17963330400005]
["ED_OPD3414_00003","DOPED0503","Non-residential low voltage demand tariff customers energy deliveries","GWh",509.57888000000003]
["ED_OPD3414_00004","DOPED0504","Non-residential high voltage demand tariff customers energy deliveries","GWh",785.29356999999993]
["ED_OPD3414_00005","DOPED0505","Other Customer Class Energy Deliveries","GWh",31.250343999999998]
[]
[null,null,"TABLE 3.4.2 -  CUSTOMER NUMBERS"]
[null,null,"Table 3.4.2.1 Distribution customer numbers by customer type or class"]
["ED_OPD3421_00001","DOPCN0101","Residential customer numbers","number",237366]
["ED_OPD3421_00002","DOPCN0102","Non residential customers not on demand tariff customer numbers","number",41203]
["ED_OPD3421_00003","DOPCN0103","Low voltage demand tariff customer numbers","number",884]
["ED_OPD3421_00004","DOPCN0104","High voltage demand tariff customer numbers","number",121]
["ED_OPD3421_00005","DOPCN0105","Unmetered Customer Numbers","number",3485]
["ED_OPD3421_00006","DOPCN0106","Other Customer Numbers","number"]
[null,"DOPCN01","Total customer numbers","number",{"$f":"SUM(E48:E53)","v":283059}]
[]
[null,null,"Table 3.4.2.2 Distribution customer numbers by location on the network"]
["ED_OPD3422_00001","DOPCN0201","Customers on CBD network","number",0]
["ED_OPD3422_00002","DOPCN0202","Customers on Urban network","number",105188]
["ED_OPD3422_00003","DOPCN0203","Customers on Short rural network","number",143499]
["ED_OPD3422_00004","DOPCN0204","Customers on Long rural network","number",34372]
[null,"DOPCN02","Total customer numbers","number",{"$f":"SUM(E57:E60)","v":283059}]
[]
[null,null,"Table 3.4.2.3 Distribution customer numbers by Aurora Feeder categories (Aurora only)"]
["ED_OPD3423_00001",null,"Critical Infrastructure","number",1870]
["ED_OPD3423_00002",null,"High Density Commercial","number",4697]
["ED_OPD3423_00003",null,"Urban","number",189819]
["ED_OPD3423_00004",null,"High Density Rural","number",42890]
["ED_OPD3423_00005",null,"Low Density Rural","number",43783]
[null,null,"Total customer numbers","number",{"$f":"SUM(E64:E68)","v":283059}]
[]
[null,null,"Table 3.4.2.4 Unmetered Supply (Aurora only)"]
["ED_OPD3424_00001","DOPCN0301","Number of unmetered connections reported in customer numbers in the economic benchmarking RIN","number",3485]
["ED_OPD3424_00002","DOPCN0302","Unmetered connections not reported in customer numbers in the economic benchmarking RIN","number",0]
[null,"DOPCN0303","Total unmetered connections","number",3485]
[]
[null,null,"TABLE 3.4.3 - SYSTEM DEMAND"]
[null,null,"Table 3.4.3.1 Annual system maximum demand characteristics at the zone substation level – MW measure"]
["ED_OPD3431_00001","DOPSD0101","Non-coincident Summated Raw System Annual Maximum Demand","MW ",234.20850006863606]
["ED_OPD3431_00002","DOPSD0102","Non–coincident Summated Weather Adjusted System Annual Maximum Demand 10% POE","MW ",280.29225972393999]
["ED_OPD3431_00003","DOPSD0103","Non–coincident Summated Weather Adjusted System Annual Maximum Demand 50% POE","MW ",255.59265907863897]
["ED_OPD3431_00004","DOPSD0104","Coincident Raw System Annual Maximum Demand","MW ",224.87054473211981]
["ED_OPD3431_00005","DOPSD0105","Coincident Weather Adjusted System Annual Maximum Demand 10% POE","MW ",270.95430438742375]
["ED_OPD3431_00006","DOPSD0106","Coincident Weather Adjusted System Annual Maximum Demand 50% POE","MW ",246.25470374212273]
[]
[null,null,"Table 3.4.3.2 Annual system maximum demand characteristics at the transmission connection point  – MW measure"]
["ED_OPD3432_00001","DOPSD0107","Non-coincident Summated Raw System Annual Maximum Demand","MW ",1044.2505460000002]
["ED_OPD3432_00002","DOPSD0108","Non–coincident Summated Weather Adjusted System Annual Maximum Demand 10% POE","MW ",1090.3343056553042]
["ED_OPD3432_00003","DOPSD0109","Non–coincident Summated Weather Adjusted System Annual Maximum Demand 50% POE","MW ",1065.6347050100032]
["ED_OPD3432_00004","DOPSD0110","Coincident Raw System Annual Maximum Demand","MW ",953.223342]
["ED_OPD3432_00005","DOPSD0111","Coincident Weather Adjusted System Annual Maximum Demand 10% POE","MW ",999.307101655304]
["ED_OPD3432_00006","DOPSD0112","Coincident Weather Adjusted System Annual Maximum Demand 50% POE","MW ",974.60750101000292]
[]
[null,null,"Table 3.4.3.3 Annual system maximum demand characteristics at the zone substation level – MVA measure"]
["ED_OPD3433_00001","DOPSD0201","Non–coincident Summated Raw System Annual Maximum Demand"," MVA",249.05273866653442]
["ED_OPD3433_00002","DOPSD0202","Non–coincident Summated Weather Adjusted System Annual Maximum Demand 10% POE"," MVA",295.13649832183836]
["ED_OPD3433_00003","DOPSD0203","Non–coincident Summated Weather Adjusted System Annual Maximum Demand 50% POE"," MVA",270.43689767653734]
["ED_OPD3433_00004","DOPSD0204","Coincident Raw System Annual Maximum Demand"," MVA",238.31431913375854]
["ED_OPD3433_00005","DOPSD0205","Coincident Weather Adjusted System Annual Maximum Demand 10% POE"," MVA",284.39807878906248]
["ED_OPD3433_00006","DOPSD0206","Coincident Weather Adjusted System Annual Maximum Demand 50% POE"," MVA",259.69847814376146]
[]
[null,null,"Table 3.4.3.4 Annual system maximum demand characteristics at the transmission connection point – MVA measure"]
["ED_OPD3434_00001","DOPSD0207","Non–coincident Summated Raw System Annual Maximum Demand"," MVA",1059.0573739240647]
["ED_OPD3434_00002","DOPSD0208","Non–coincident Summated Weather Adjusted System Annual Maximum Demand 10% POE"," MVA",1105.1411335793687]
["ED_OPD3434_00003","DOPSD0209","Non–coincident Summated Weather Adjusted System Annual Maximum Demand 50% POE"," MVA",1080.4415329340677]
["ED_OPD3434_00004","DOPSD0210","Coincident Raw System Annual Maximum Demand"," MVA",961.61023267887481]
["ED_OPD3434_00005","DOPSD0211","Coincident Weather Adjusted System Annual Maximum Demand 10% POE"," MVA",1007.6939923341788]
["ED_OPD3434_00006","DOPSD0212","Coincident Weather Adjusted System Annual Maximum Demand 50% POE"," MVA",982.99439168887773]
[]
[null,null,"Table 3.4.3.5 Power factor conversion between MVA and MW"]
["ED_OPD3435_00001","DOPSD0301","Average overall network power factor conversion between MVA and MW","Factor",0.98601886140577866]
["ED_OPD3435_00002","DOPSD0302","Average power factor conversion for  low voltage distribution lines","Factor",0.98601886140577866]
["ED_OPD3435_00003","DOPSD0303","Average power factor conversion for 3.3 kV lines","Factor"]
["ED_OPD3435_00004","DOPSD0304","Average power factor conversion for 6.6 kV lines","Factor",0.81422892172472583]
["ED_OPD3435_00005","DOPSD0305","Average power factor conversion for 7.6 kV lines","Factor"]
["ED_OPD3435_00006","DOPSD0306","Average power factor conversion for 11 kV lines","Factor",0.98615714300573931]
["ED_OPD3435_00007","DOPSD0307","Average power factor conversion for SWER lines","Factor",0.98896651193670448]
["ED_OPD3435_00008","DOPSD0308","Average power factor conversion for 22 kV lines","Factor",0.98896651193670448]
["ED_OPD3435_00009","DOPSD0309","Average power factor conversion for 33 kV lines","Factor",0.97637953934023081]
["ED_OPD3435_00010","DOPSD0310","Average power factor conversion for 44 kV lines","Factor",0.94253660586773935]
["ED_OPD3435_00011","DOPSD0311","Average power factor conversion for 66 kV lines","Factor"]
["ED_OPD3435_00012","DOPSD0312","Average power factor conversion for 110 kV lines","Factor"]
["ED_OPD3435_00013","DOPSD0313","Average power factor conversion for 132 kV lines","Factor"]
["ED_OPD3435_00013","DOPSD0314","Average power factor conversion for 220 kV lines","Factor"]
[]
[null,null,"Table 3.4.3.6 Demand supplied (for customers charged on this basis) – MW measure"]
["ED_OPD3436_00001","DOPSD0401","Summated Chargeable Contracted Maximum Demand","MW "]
["ED_OPD3436_00002","DOPSD0402","Summated Chargeable Measured Maximum Demand ","MW "]
[null,null,"Table 3.4.3.7 Demand supplied (for customers charged on this basis) – MVA measure"]
["ED_OPD3437_00001","DOPSD0403","Summated Chargeable Contracted Maximum Demand"," MVA",144.69437628]
["ED_OPD3437_00002","DOPSD0404","Summated Chargeable Measured Maximum Demand "," MVA",186.776145238]

{"sheet":"3.5 Physical assets","index":7,"n_rows":95,"n_cols":5,"rows_kept":95,"cut":false,"hidden":false,"merged":[]}
[null,null,"REGULATORY REPORTING STATEMENT"]
[null,null,{"$f":"dms_TradingName","v":"TasNetworks (D)"}]
[null,null,{"$f":"CONCATENATE(\"Benchmarking RIN response \",CRY)","v":"Benchmarking RIN response 2014-15"}]
[null,null,"3.5 PHYSICAL ASSETS"]
[]
[]
[]
[null,null,null,null,"Actual"]
[null,null,null,null,{"$f":"CRY","v":"2014-15"}]
[null,null,null,"Unit"]
[null,null,"TABLE 3.5.1 - NETWORK CAPACITIES"]
[null,null,"Circuit length"]
[null,null,"Table 3.5.1.1 Overhead network length of circuit at each voltage"]
["ED_PHA3511_00001","DPA0101","Overhead low voltage distribution","km",4955.165]
["ED_PHA3511_00002","DPA0102","Overhead 2.2 kV","km",0]
["ED_PHA3511_00003","DPA0103","Overhead 6.6kv","km",6.1379999999999999]
["ED_PHA3511_00004","DPA0104","Overhead 7.6 kV","km",0]
["ED_PHA3511_00005","DPA0105","Overhead 11 kV","km",2951.7429999999999]
["ED_PHA3511_00006","DPA0106","Overhead SWER","km",483.73099999999999]
["ED_PHA3511_00007","DPA0107","Overhead 22 kV","km",11632.992]
["ED_PHA3511_00008","DPA0108","Overhead 33 kV","km",87.540999999999997]
["ED_PHA3511_00009","DPA0109","Overhead 44 kV","km",46.646000000000001]
["ED_PHA3511_00010","DPA0110","Overhead 66 kV","km",0]
["ED_PHA3511_00011","DPA0111","Overhead 110kV","km",0]
["ED_PHA3511_00012","DPA0112","Overhead 132 kV","km",0]
["ED_PHA3511_00013","DPA0113","Overhead 220kV","km",0]
["ED_PHA3511_00014","DPA0114","Other ","km",0]
[null,"DPA01","Total overhead circuit km","km",{"$f":"SUM(E14:E27)","v":20163.956000000002}]
[]
[null,null,"Table 3.5.1.2 Underground network circuit length at each voltage"]
["ED_PHA3512_00001","DPA0201","Underground low voltage distribution","km",1240.239]
["ED_PHA3512_00002","DPA0202","Underground 5 kV","km",0]
["ED_PHA3512_00003","DPA0203","Underground 6.6 Kv","km",0.105]
["ED_PHA3512_00004","DPA0204","Underground 7.6 kV","km",0]
["ED_PHA3512_00005","DPA0205","Underground 11 kV","km",625.03399999999999]
["ED_PHA3512_00006","DPA0206","Underground SWER","km",5.9189999999999996]
["ED_PHA3512_00007","DPA0207","Underground 22 kV","km",524.99699999999996]
["ED_PHA3512_00008","DPA0208","Underground 33 kV","km",68.995000000000005]
["ED_PHA3512_00010","DPA0209","Underground 66 kV","km",0]
["ED_PHA3512_00009","DPA0210","Underground 110 kV","km",0]
["ED_PHA3512_00010","DPA0211","Underground 132 kV","km",0]
["ED_PHA3512_00011","DPA0212","Other ","km",0]
[null,"DPA02","Total underground circuit km","km",{"$f":"SUM(E31:E42)","v":2465.2890000000002}]
[]
[null,null,"Circuit Capacity MVA"]
[null,null,"Table 3.5.1.3 Estimated overhead network weighted average MVA capacity by voltage class"]
["ED_PHA3513_00001","DPA0301","Overhead low voltage distribution","MVA",0.13400000000000001]
["ED_PHA3513_00002","DPA0302","Overhead 6.6 kV","MVA",7.7]
["ED_PHA3513_00003","DPA0303","Overhead 7.6 kV","MVA",0]
["ED_PHA3513_00004","DPA0304","Overhead 11 kV","MVA",4.258]
["ED_PHA3513_00005","DPA0305","Overhead SWER","MVA",0.64100000000000001]
["ED_PHA3513_00006","DPA0306","Overhead 22 kV","MVA",7.2779999999999996]
["ED_PHA3513_00007","DPA0307","Overhead 33 kV","MVA",23.161000000000001]
["ED_PHA3513_00008","DPA0308","Overhead 44 kV","MVA",29.704000000000001]
["ED_PHA3513_00009","DPA0309","Overhead 66 kV","MVA",0]
["ED_PHA3513_00010","DPA0310","Overhead 110 kV","MVA",0]
["ED_PHA3513_00011","DPA0311","Overhead 132 kV","MVA",0]
["ED_PHA3513_00012","DPA0312","Overhead 220 kV","MVA",0]
["ED_PHA3513_00013","DPA0313","Other ","MVA",0]
[]
[null,null,"Table 3.5.1.4 Estimated underground network weighted average MVA capacity by voltage class"]
["ED_PHA3514_00001","DPA0401","Underground low voltage distribution","MVA",0.26]
["ED_PHA3514_00002","DPA0402","Underground 5 kV","MVA",0]
["ED_PHA3514_00003","DPA0403","Underground 6.6 kV","MVA",3.2]
["ED_PHA3514_00004","DPA0404","Underground 7.6 kV","MVA",0]
["ED_PHA3514_00005","DPA0405","Underground 11 kV","MVA",5.9039999999999999]
["ED_PHA3514_00006","DPA0406","Underground SWER","MVA",0.432]
["ED_PHA3514_00007","DPA0407","Underground 12.7 kV","MVA",0]
["ED_PHA3514_00008","DPA0408","Underground 22 kV","MVA",11.394]
["ED_PHA3514_00009","DPA0409","Underground 33 kV","MVA",25.757999999999999]
["ED_PHA3514_00010","DPA0410","Underground 66 kV","MVA",0]
["ED_PHA3514_00010","DPA0411","Underground 110 kV","MVA",0]
["ED_PHA3514_00011","DPA0412","Underground 132 kV","MVA",0]
["ED_PHA3514_00012","DPA0413","Other","MVA",0.47599999999999998]
[]
[null,null,"TABLE 3.5.2 - TRANSFORMER CAPACITIES"]
[null,null,"Table 3.5.2.1 Distribution transformer total installed capacity"]
["ED_PHA3521_00001","DPA0501","Distribution transformer capacity owned by utility","MVA",3602.9690000000001]
["ED_PHA3521_00002","DPA0502","Distribution transformer capacity owned by High Voltage Customers","MVA",186.77600000000001]
["ED_PHA3521_00003","DPA0503","Cold spare capacity included in DPA0501","MVA",36.04]
[]
[null,null,"Table 3.5.2.2 Zone substation transformer capacity"]
["ED_PHA3522_00001","DPA0601","Total installed capacity for first step transformation where there are two steps to reach distribution voltage","MVA",0]
["ED_PHA3522_00002","DPA0602","Total installed capacity for second step transformation where there are two steps to reach distribution voltage","MVA",0]
["ED_PHA3522_00003","DPA0603","Total zone substation transformer capacity where there is only a single step transformation to reach distribution voltage","MVA",650]
["ED_PHA3522_00004","DPA0604","Total zone substation transformer  capacity ","MVA",675]
["ED_PHA3522_00005","DPA0605","Cold spare capacity of zone substation transformers included in DPA0604","MVA",25]
[]
[null,null,"Table 3.5.2.3 Distribution - other transformer capacity"]
["ED_PHA3523_00001",null,"Distribution other - transformer capacity owned by utility ","MVA",516]
[]
[null,null,"TABLE 3.5.3 - PUBLIC LIGHTING"]
["ED_PHA353_00001","DPA0701","Public lighting luminaires","Number",42475]
["ED_PHA353_00002","DPA0702","Public lighting poles","Number",1604]
["ED_PHA353_00003","DPA0703","Public lighting columns ","Number",9424]

{"sheet":"3.6 Quality of service","index":8,"n_rows":32,"n_cols":5,"rows_kept":32,"cut":false,"hidden":false,"merged":[]}
[null,null,"REGULATORY REPORTING STATEMENT"]
[null,null,{"$f":"dms_TradingName","v":"TasNetworks (D)"}]
[null,null,{"$f":"CONCATENATE(\"Benchmarking RIN response \",CRY)","v":"Benchmarking RIN response 2014-15"}]
[null,null,"3.6 QUALITY OF SERVICE DATA"]
[]
[]
[]
[null,null,null,null,"Actual"]
[null,null,null,null,{"$f":"CRY","v":"2014-15"}]
[null,null,null,"Unit"]
[null,null,"TABLE 3.6.1 - RELIABILITY"]
[null,null,"Table 3.6.1.1 Inclusive of MEDs"]
["ED_QOS3611_00001","DQS0101","Whole of network unplanned SAIDI","minutes/customer",319.86900000000003]
["ED_QOS3611_00002","DQS0102","Whole of network unplanned SAIDI excluding excluded outages","minutes/customer",312.423]
["ED_QOS3611_00003","DQS0103","Whole of network unplanned SAIFI","interruptions/customer",1.855]
["ED_QOS3611_00004","DQS0104","Whole of network unplanned SAIFI excluding excluded outages","interruptions/customer",1.7849999999999999]
[null,null,"Table 3.6.1.2 Exclusive of MEDs"]
["ED_QOS3612_00001","DQS0105","Whole of network unplanned SAIDI","minutes/customer",142.40299999999999]
["ED_QOS3612_00002","DQS0106","Whole of network unplanned SAIDI excluding excluded outages","minutes/customer",141.25800000000001]
["ED_QOS3612_00003","DQS0107","Whole of network unplanned SAIFI","interruptions/customer",1.34]
["ED_QOS3612_00004","DQS0108","Whole of network unplanned SAIFI excluding excluded outages","interruptions/customer",1.298]
[]
[null,null,"TABLE 3.6.2 - ENERGY NOT SUPPLIED"]
["ED_QOS362_00001","DQS0201","Energy Not Supplied (planned)","GWh",0.39]
["ED_QOS362_00002","DQS0202","Energy Not Supplied (unplanned)","GWh",0.91200000000000003]
[null,"DQS02","Total","GWh",{"$f":"SUM(E24:E25)","v":1.302}]
[]
[null,null,"TABLE 3.6.3 - SYSTEM LOSSES"]
["ED_QOS363_00001","DQS03","System losses","%",3.8633969999999997E-2]
[]
[null,null,"TABLE 3.6.4 - CAPACITY UTILISATION"]
["ED_QOS364_00001","DQS04","Overall utilisation","%",0.3689670202]

{"sheet":"3.7 Operating environment","index":9,"n_rows":33,"n_cols":5,"rows_kept":33,"cut":false,"hidden":false,"merged":[]}
[null,null,"REGULATORY REPORTING STATEMENT"]
[null,null,{"$f":"dms_TradingName","v":"TasNetworks (D)"}]
[null,null,{"$f":"CONCATENATE(\"Benchmarking RIN response \",CRY)","v":"Benchmarking RIN response 2014-15"}]
[null,null,"3.7 OPERATING ENVIRONMENT FACTORS"]
[]
[]
[]
[null,null,null,null,"Actual"]
[null,null,null,null,{"$f":"CRY","v":"2014-15"}]
[]
[null,null,"TABLE 3.7.1 - DENSITY FACTORS"]
["ED_OEF371_00001","DOEF0101","Customer density","Customer / km",16.13662901]
["ED_OEF371_00002","DOEF0102","Energy density","MWh/customer",15.241300000000001]
["ED_OEF371_00003","DOEF0103","Demand density","kVA / customer",0.87985800000000003]
[]
[null,null,"TABLE 3.7.2 - TERRAIN FACTORS"]
["ED_OEF372_00001","DOEF0201","Rural proportion","%",0.92398000000000002]
["ED_OEF372_00002","DOEF0202","Urban and CBD vegetation maintenance spans","Number of spans",4028.643593736866]
["ED_OEF372_00003","DOEF0203","Rural vegetation maintenance spans","Number of spans",22173.784296172667]
["ED_OEF372_00004","DOEF0204","Total vegetation maintenance spans","Number of spans",26202.427889909533]
["ED_OEF372_00005","DOEF0205","Total number of spans","Number of spans",222667]
["ED_OEF372_00006","DOEF0206","Average urban and CBD vegetation maintenance span cycle","Years",2.2999999999999998]
["ED_OEF372_00007","DOEF0207","Average rural vegetation maintenance span cycle","Years",2.2999999999999998]
["ED_OEF372_00008","DOEF0208","Average number of trees per urban and CBD vegetation maintenance span","Trees",16.3]
["ED_OEF372_00009","DOEF0209","Average number of trees per rural vegetation maintenance span","Trees",42.4]
["ED_OEF372_00010","DOEF0210","Average number of defects per urban and CBD vegetation maintenance span","Defects",2.8]
["ED_OEF372_00011","DOEF0211","Average number of defects per rural vegetation maintenance span","Defects",5.8]
["ED_OEF372_00012","DOEF0212","Tropical proportion","Spans",0]
["ED_OEF372_00013","DOEF0213","Standard vehicle access","km",762.59400000000005]
["ED_OEF372_00014","DOEF0214","Bushfire risk","Spans",5207]
[]
[null,null,"TABLE 3.7.3 - SERVICE AREA FACTORS"]
["ED_OEF373_00001","DOEF0301","Route Line length","km",20427]

{"sheet":"Unlocked worksheet","index":10,"n_rows":0,"n_cols":0,"rows_kept":0,"cut":false,"hidden":false,"merged":[]}